Cogmind - Beta 10.1 @@@ ROGUE MODE // 2021.07.21 @ 08:57:33 // Winter2019/RPGLIKE Player: Farfid Result: Escaped! Performance ------------- Evolutions (9) 4500 Regions Visited (37) 7400 Robots Destroyed (933) 4665 Value Destroyed (49517) 49517 Prototype IDs (129) 2580 Alien Tech Used (0) 0 Bonus (64636) 64636 TOTAL SCORE: 133298 Bonus ------- Triggered High Security 2500 High Alert Combat Kills 30566 Follower Combat Kills 7717 Entered Garrisons 200 Network Hubs Disabled 200 Met Data Miner 300 Met Imprinter 300 Was Imprinted 300 Met Warlord at Base 500 MAIN.C Attacked Warlord 500 Warlord Defense Kill 19092 Scanned by Researcher 500 Acquired SGEMP 2000 Met Sigix 2000 Win 3000 Friendly Fire -5039 Cogmind --------- Core Integrity 2000/2000 Matter 400/400 Energy 693/700 System Corruption 2% Temperature Cool (6) Movement Hovering (45) Location To Epsilon Eridani Parts ------- > --- POWER (2) -------- Vortex Chain Reactor > --- PROPULSION (4) --- Cooled Antigrav System Combat Linear Gravjet Combat Linear Gravjet Combat Linear Gravjet > --- UTILITY (14) ----- Experimental Power Amplifier Experimental Cooling System Experimental Signal Interpreter Experimental Terrain Scanner Precision Matter Filter Precision Energy Filter Advanced Particle Charger Quantum Capacitor Advanced Reaction Control System Centrium Medium Armor Plating EM Dispersion Field Long-range Tractor Beam > --- WEAPON (4) ------- EMDS Cooled Nova Cannon Neutron Missile Launcher > --- INVENTORY (5) ---- Improved Stasis Canceller High-powered Transdimensional Reconstructor Subatomic Replicator Peak State ------------ > --- POWER ------------ Vortex Chain Reactor > --- PROPULSION ------- Cooled Antigrav System Combat Linear Gravjet Combat Linear Gravjet Combat Linear Gravjet > --- UTILITY ---------- Experimental Power Amplifier Experimental Cooling System Experimental Signal Interpreter Experimental Terrain Scanner Precision Matter Filter Precision Energy Filter Advanced Particle Charger Quantum Capacitor Advanced Reaction Control System Centrium Medium Armor Plating Thermal Barrier EM Dispersion Field Long-range Tractor Beam > --- WEAPON ----------- EMDS Cooled Nova Cannon Neutron Missile Launcher > --- INVENTORY -------- Protomatter Protomatter Protomatter High-powered Transdimensional Reconstructor Subatomic Replicator [Rating: 204] Favorites ----------- Power F-cell Engine Engine F-cell Engine Power Core Micro Nuclear Core Reactor Vortex Chain Reactor Propulsion Zionite Glidesys II Leg Zionite Composite Leg II Wheel Wheel Hover Unit Zionite Glidesys II Utility Advanced Particle Charger Device Advanced Particle Charger Storage Advanced Matter Compressor Processor Experimental Core Analyzer Protection Improved Medium Armor Plating Weapon Heavy Ion Cannon Energy Gun Force Rifle Energy Cannon Heavy Ion Cannon Ballistic Gun Helical Railgun Ballistic Cannon Hypercooled Linear Accelerator Launcher Neutron Missile Launcher Special Weapon Remote Datajack Build | -11 -10 -10 -10 -9 -8 -7 -7 -7 -7 -6 -6 -6 -6 -6 -6 -6 -5 -5 -5 -5 -5 -5 -5 -5 -4 -4 -4 -4 -3 -3 -3 -2 -2 -2 -2 -1 -1 ------- Run | Scr Mat Min Exi Min Mat Fac Low Low Dat Pro Fac Was Fac Low Low Zio Pro Fac Was Fac Ext Cet Arc Hub Fac Upp Upp War Pro Res Qua Res Tes Sec Gar Acc Com Slots Evolved 20 | 2 . . . . 3 4 . 1 . 2 2 . 1 . . . . . . . . . 1 . 1 . . . 1 . . . 1 . . 1 . Power 1 | . . . . . . 1 . . . . . . . . . . . . . . . . . . . . . . . . . . . . . . . Propulsion 3 | 1 . . . . . 1 . . . . . . . . . . . . . . . . . . 1 . . . . . . . . . . . . Utility 13 | . . . . . 2 2 . 1 . 1 2 . 1 . . . . . . . . . 1 . . . . . 1 . . . 1 . . 1 . Weapon 3 | 1 . . . . 1 . . . . 1 . . . . . . . . . . . . . . . . . . . . . . . . . . . Parts Attached 240 | 4 3 1 . 1 11 26 1 2 . 3 23 2 4 1 . 12 2 1 . 3 5 4 8 16 16 5 3 18 3 13 10 7 11 2 2 14 3 Power 15 | 1 . 1 . . . 2 . . . . 5 . . . . . . . . . . 1 . 2 . . . 3 . . . . . . . . . Engine 6 | 1 . 1 . . . 1 . . . . 2 . . . . . . . . . . . . 1 . . . . . . . . . . . . . Core 4 | . . . . . . 1 . . . . 3 . . . . . . . . . . . . . . . . . . . . . . . . . . Reactor 5 | . . . . . . . . . . . . . . . . . . . . . . 1 . 1 . . . 3 . . . . . . . . . Propulsion 33 | 1 1 . . . 1 2 . . . . . . . . . . . . . . . . 2 2 7 3 2 2 . 2 . . 1 . . 7 . Treads . | . . . . . . . . . . . . . . . . . . . . . . . . . . . . . . . . . . . . . . Leg 3 | . . . . . . . . . . . . . . . . . . . . . . . . 1 . 2 . . . . . . . . . . . Wheel 10 | 1 1 . . . 1 2 . . . . . . . . . . . . . . . . 1 1 3 . . . . . . . . . . . . Hover 20 | . . . . . . . . . . . . . . . . . . . . . . . 1 . 4 1 2 2 . 2 . . 1 . . 7 . Flight . | . . . . . . . . . . . . . . . . . . . . . . . . . . . . . . . . . . . . . . Utility 131 | . . . . 1 5 13 1 2 . 1 16 1 2 1 . 6 . 1 . 3 4 2 5 8 4 2 1 10 3 7 8 4 9 2 . 6 3 Device 73 | . . . . 1 2 4 1 2 . 1 5 . 1 1 . 3 . 1 . 3 4 . 4 1 2 1 1 6 2 5 4 4 6 2 . 4 2 Storage 5 | . . . . . . . . . . . 1 . . . . . . . . . . . 1 . . . . 1 . . 2 . . . . . . Processor 9 | . . . . . . 1 . . . . . . 1 . . 3 . . . . . . . 1 2 1 . . . . . . . . . . . Hackware . | . . . . . . . . . . . . . . . . . . . . . . . . . . . . . . . . . . . . . . Protection 44 | . . . . . 3 8 . . . . 10 1 . . . . . . . . . 2 . 6 . . . 3 1 2 2 . 3 . . 2 1 Artifact . | . . . . . . . . . . . . . . . . . . . . . . . . . . . . . . . . . . . . . . Weapon 61 | 2 2 . . . 5 9 . . . 2 2 1 2 . . 6 2 . . . 1 1 1 4 5 . . 3 . 4 2 3 1 . 2 1 . Energy Gun 24 | 2 2 . . . 1 4 . . . . 2 1 1 . . 1 2 . . . 1 1 1 . 2 . . . . 1 . 1 . . 1 . . Energy Cannon 26 | . . . . . 4 5 . . . 1 . . 1 . . 1 . . . . . . . 2 2 . . 2 . 3 1 2 1 . 1 . . Ballistic Gun 1 | . . . . . . . . . . . . . . . . . . . . . . . . . . . . 1 . . . . . . . . . Ballistic Cannon 1 | . . . . . . . . . . . . . . . . . . . . . . . . . . . . . . . 1 . . . . . . Launcher 8 | . . . . . . . . . . . . . . . . 4 . . . . . . . 2 1 . . . . . . . . . . 1 . Special Weapon 1 | . . . . . . . . . . 1 . . . . . . . . . . . . . . . . . . . . . . . . . . . Impact Weapon . | . . . . . . . . . . . . . . . . . . . . . . . . . . . . . . . . . . . . . . Slashing Weapon . | . . . . . . . . . . . . . . . . . . . . . . . . . . . . . . . . . . . . . . Piercing Weapon . | . . . . . . . . . . . . . . . . . . . . . . . . . . . . . . . . . . . . . . Special Melee Weapon . | . . . . . . . . . . . . . . . . . . . . . . . . . . . . . . . . . . . . . . Unidentified Prototypes 58 | . . . . . . 2 . . . . 3 . 2 . . 4 . . . 1 . 2 3 8 5 1 . 7 . 5 5 2 4 1 1 2 . Parts Lost 5 | . . . . . 3 . . . . . . . . . . 1 . . . . . . . . 1 . . . . . . . . . . . . Power . | . . . . . . . . . . . . . . . . . . . . . . . . . . . . . . . . . . . . . . Propulsion 2 | . . . . . 1 . . . . . . . . . . . . . . . . . . . 1 . . . . . . . . . . . . Utility 2 | . . . . . 2 . . . . . . . . . . . . . . . . . . . . . . . . . . . . . . . . Weapon 1 | . . . . . . . . . . . . . . . . 1 . . . . . . . . . . . . . . . . . . . . . Highest Loss Streak 2 | . . . . . 2 . . . . . . . . . . 1 . . . . . . . . 1 . . . . . . . . . . . . Average Slot Usage (%) 88 | . 69 83 83 99 95 96 92 92 92 92 92 84 83 84 84 81 84 84 84 84 83 84 83 87 90 94 95 90 90 90 89 88 85 86 86 85 84 Engine 6 | . 16 16 16 16 12 8 7 7 7 6 5 11 10 10 10 10 10 10 10 10 10 7 5 5 4 4 4 . . . . . . . . . . Core 1 | . . . . . . 1 7 7 7 6 5 . . . . . . . . . . . . . . . . . . . . . . . . . . Reactor 1 | . . . . . . . . . . . . . . . . . . . . . . 2 5 5 4 4 4 3 4 4 4 4 4 4 4 4 4 Wheel 9 | . 19 33 33 33 25 19 15 14 14 12 11 11 10 10 10 10 10 10 10 10 10 10 9 10 7 . . . . . . . . . . . . Hover 6 | . . . . . . . . . . . . . . . . . . . . . . . . . 3 18 19 19 18 18 18 18 17 17 17 16 16 Device 30 | . . . . 15 12 17 15 19 21 22 29 33 32 31 31 30 31 31 31 31 31 31 32 36 39 38 38 37 40 40 39 39 41 43 43 42 43 Processor 4 | . . . . . . . . . . . . . 2 5 5 5 5 5 5 5 5 5 5 5 8 9 9 9 9 9 9 7 4 4 4 4 4 Protection 7 | . . . . . 13 18 23 21 21 19 15 7 5 5 5 5 5 5 5 5 5 5 5 6 6 4 4 3 3 3 4 4 3 4 4 4 3 Energy Gun 7 | . 32 33 33 33 6 8 . . . . 3 12 15 15 15 11 14 15 15 15 14 15 15 12 . . . . . . . . . . . . . Energy Cannon 9 | . . . . . 24 18 23 21 21 19 13 9 4 5 5 4 . . . . . . . 1 9 9 9 8 9 9 9 9 8 8 8 8 8 Launcher 2 | . . . . . . . . . . . . . . . . 1 5 5 5 5 5 5 5 4 4 4 4 4 4 4 4 4 4 4 4 4 4 Naked Turns . | . . . . . . . . . . . . . . . . . . . . . . . . . . . . . . . . . . . . . . Heaviest Build 119 | 9 9 14 14 15 39 63 63 63 63 70 89 111 110 110 108 111 111 109 109 109 109 116 117 117 112 104 106 116 116 113 118 117 118 118 118 119 119 Greatest Support 127 | 15 31 31 31 31 31 43 43 43 43 43 43 43 43 43 43 43 43 43 43 43 43 43 43 49 117 117 117 117 117 121 121 121 121 121 121 127 121 Greatest Overweight (x) 3 | . . . . . 2 1 1 1 1 1 2 2 2 2 2 2 2 2 2 2 2 2 3 3 3 3 . . . . . . 1 . . 1 . Average Overweight (x) . | . . . . . . . 1 1 1 1 1 2 2 2 2 2 2 2 2 2 2 1 2 1 1 . . . . . . . . . . . . Largest Inventory Capacity 5 | 1 1 1 1 2 2 3 3 4 4 4 5 5 5 5 5 5 5 5 5 5 5 5 5 5 5 5 5 5 5 5 5 5 5 5 5 5 5 Average Capacity 4 | 1 1 1 1 1 2 2 3 3 4 4 4 5 5 5 5 5 5 5 5 5 5 5 5 5 5 5 5 5 5 5 5 5 5 5 5 5 5 Most Carried 5 | . 1 1 1 2 2 3 3 4 3 4 5 5 5 5 5 5 5 5 5 5 5 5 4 5 5 5 5 5 5 5 5 5 5 4 5 5 5 Average Carried 3 | . . 1 1 1 . . 2 3 3 3 4 4 5 4 5 5 4 4 5 5 5 2 3 4 4 5 5 4 4 5 4 4 4 3 4 4 4 Final Capacity 5 | 1 1 1 1 2 2 3 3 4 4 4 5 5 5 5 5 5 5 5 5 5 5 5 5 5 5 5 5 5 5 5 5 5 5 5 5 5 5 Final Carried 5 | . 1 1 1 2 . 3 2 3 3 4 5 5 5 5 5 5 4 5 5 5 5 3 4 5 5 5 5 5 5 5 5 5 3 4 5 4 3 Class Distribution -------------------- 33% | Scavenger-Scout 15% | Scavenger-Gunner 11% | Tank 8% | Mutant 7% | Derelict-Gunner 7% | Scavenger-Mutant 3% | Derelict-Mutant 3% | Scavenger-Skirmisher 3% | Commander-Tank Dominant Class ---------------- Mutant | -10/Materials Mutant | -10/Mines Mutant | -10/Exiles Mutant | -9/Mines Mutant | -8/Materials Tank | -7/Factory Tank | -7/Lower Caves Tank | -7/Lower Caves Commander-Tank | -7/Data Miner Commander-Tank | -6/Proximity Caves Derelict-Tank | -6/Factory Scavenger-Gunner | -6/Waste Scavenger-Gunner | -6/Factory Derelict-Gunner | -6/Lower Caves Derelict-Gunner | -6/Lower Caves Derelict-Mutant | -6/Zion Scavenger-Gunner | -5/Proximity Caves Scavenger-Gunner | -5/Factory Scavenger-Gunner | -5/Waste Scavenger-Gunner | -5/Factory Scavenger-Gunner | -5/Extension Scavenger-Mutant | -5/Cetus Scavenger-Gunner | -5/Archives Scavenger-Mutant | -5/Hub_04(d) Scavenger-Skirmisher | -4/Factory Scavenger-Scout | -4/Upper Caves Scavenger-Scout | -4/Upper Caves Scavenger-Scout | -4/Warlord Scavenger-Scout | -3/Proximity Caves Scavenger-Scout | -3/Research Scavenger-Scout | -3/Quarantine Scavenger-Scout | -2/Research Scavenger-Scout | -2/Testing Scavenger-Scout | -2/Section 7 Scavenger-Scout | -2/Garrison Scavenger-Scout | -1/Access Scavenger-Scout | -1/Command Resources | -11 -10 -10 -10 -9 -8 -7 -7 -7 -7 -6 -6 -6 -6 -6 -6 -6 -5 -5 -5 -5 -5 -5 -5 -5 -4 -4 -4 -4 -3 -3 -3 -2 -2 -2 -2 -1 -1 ----------- Run | Scr Mat Min Exi Min Mat Fac Low Low Dat Pro Fac Was Fac Low Low Zio Pro Fac Was Fac Ext Cet Arc Hub Fac Upp Upp War Pro Res Qua Res Tes Sec Gar Acc Com Matter Collected 10677 | 240 30 10 . 10 165 269 10 20 . 30 215 28 10 50 . 114 106 10 . 70 290 60 80 160 1241 727 306 1660 291 516 817 715 270 116 273 1593 175 Remotely 9591 | . . . . 10 165 19 . . . . . . . 10 . 114 106 10 . 70 290 60 80 160 1195 696 305 1636 291 503 803 648 270 116 266 1593 175 Salvage Created 43705 | . 325 278 . 84 1225 3111 252 722 . 369 1177 580 477 353 337 . 846 79 1493 84 2056 48 138 1066 2270 1065 113 5542 598 1664 571 3290 341 644 1244 10197 1066 Parts 1593 | . 13 13 . 10 74 118 14 31 . 27 74 12 11 14 18 . 40 1 31 11 57 21 . 50 94 28 5 204 32 56 27 95 16 26 54 289 27 Haulers Intercepted 36 | . 1 . . . 3 5 . . . . 2 . 2 . . . . 1 . . 2 . . . 1 . . . . 2 1 4 . 2 . 10 . Recyclers Shooed 5 | . . 1 . 1 . . . . . . . . . . . . . . . 1 . . . . . . . . . 2 . . . . . . . Parts Field Recycled . | . . . . . . . . . . . . . . . . . . . . . . . . . . . . . . . . . . . . . . Retrieved Matter . | . . . . . . . . . . . . . . . . . . . . . . . . . . . . . . . . . . . . . . Parts Self-Destructed 326 | . . . . . . . 11 17 . 40 . . . 13 27 5 49 . . . . . . . . 13 . 138 13 . . . . . . . . Prevented 111 | . . . . . . . . . . . . . . . . . 2 . . . . . . . . 18 5 67 19 . . . . . . . . Kills | -11 -10 -10 -10 -9 -8 -7 -7 -7 -7 -6 -6 -6 -6 -6 -6 -6 -5 -5 -5 -5 -5 -5 -5 -5 -4 -4 -4 -4 -3 -3 -3 -2 -2 -2 -2 -1 -1 ------- Run | Scr Mat Min Exi Min Mat Fac Low Low Dat Pro Fac Was Fac Low Low Zio Pro Fac Was Fac Ext Cet Arc Hub Fac Upp Upp War Pro Res Qua Res Tes Sec Gar Acc Com Combat Hostiles Destroyed 733 | . 3 6 . 6 34 52 5 15 . 11 17 4 4 5 9 . 17 . 5 5 48 10 1 10 30 21 4 148 16 18 6 31 5 6 20 149 12 Guns 101 | . 2 6 . 6 3 20 . . . . 3 2 2 4 7 . 14 . 5 2 10 4 1 10 . . . . . . . . . . . . . Cannons 265 | . . . . . 30 28 5 14 . 11 11 2 . 1 2 . 2 . . . . . . . 17 3 2 37 4 9 3 15 3 3 14 44 5 AOE 210 | . . . . . . 2 . . . . 2 . 2 . . . 1 . . 3 38 5 . . 3 7 . 80 7 1 . 4 . . . 55 . Classes Destroyed 30 | . 5 1 . 1 4 3 2 2 . . . 1 . . . . . . . . 3 . . 1 . . . 4 . . . . 1 . . 2 . Worker 42 | . 1 . . . 3 8 . . . . 8 . . . . . . . . . . . . 1 5 . . . . 2 2 2 . . . 9 1 Builder 15 | . . . . . 1 4 . . . . 2 . 1 . . . . . . . 2 . . . 1 . . . . 1 . . . . . 3 . Tunneler 4 | . 2 1 . . . . . . . . . . . . . . . . . . . . . . . . . . . . . . . . . 1 . Hauler 36 | . 1 . . . 3 5 . . . . 2 . 2 . . . . 1 . . 2 . . . 1 . . . . 2 1 4 . 2 . 10 . Recycler 25 | . 1 . . . 2 8 . . . . 1 . . . . . . . . . . . . 1 . . . . . 3 . 4 . . . 5 . Carrier 2 | . . . . . . . . . . . . . . . . . . . . . . . . . . . . . . . . . . . . 2 . Mechanic 14 | . . . . . . . . . . . . . . . . . . . . . 1 . . . . . . 1 . . . 2 . . . 10 . Operator 11 | . . . . . . 2 . . . . 2 . . . . . . . . . . . . . 2 . . . . . . 1 1 1 . 2 . Watcher 30 | . . . . . 1 3 . . . . 1 . . . . . . . . . . 1 . 1 2 . . . . 1 2 3 1 . . 13 1 Swarmer 123 | . . 6 . 5 15 8 2 . . 2 . . . . 3 . 2 . . 3 5 5 . . . 8 . 27 10 . . 4 . . 3 15 . Saboteur 16 | . . . . . . . . . . . . . . . . . . . . . 3 . . 1 1 . . 4 . . . . . . . 7 . Grunt 268 | . 3 . . . 10 33 . 6 . 3 10 . 1 1 3 . 11 . . 1 18 . . . 11 6 . 50 3 8 2 19 . 1 7 56 5 Brawler 35 | . . . . . . . . 1 . . . . . . 1 . 2 . . . 5 . . 1 . 1 . 11 . . . 2 . . . 11 . Duelist 32 | . . . . . . 2 . . . 3 . . . . . . . . . . 8 . . . 3 2 . 5 1 . . 1 . . . 7 . Protector 18 | . . . . . . . . . . . . . . . . . . . . . 3 . . . 1 . . 10 . . . . . . . 4 . Sentry 53 | . . . . . 5 4 1 . . 2 5 . 3 . . . 1 . . . 3 . 1 4 3 2 . . 1 1 . 3 . 3 3 7 1 Demolisher 4 | . . . . . . . . . . . . . . . . . . . . . . . . . . . . 4 . . . . . . . . . Specialist 3 | . . . . . . . . . . . . . . . . . . . . . . . . . . . . 3 . . . . . . . . . Hunter 51 | . . . . . 4 3 . . . . 1 . . 1 . . . . . . 1 . . 1 5 1 4 13 . 2 . . . . . 14 1 Programmer 53 | . . . . . . 2 . . . . 1 . . . 1 . . . . 1 2 1 . . 4 . . 5 . 7 2 2 2 2 6 15 . Behemoth 10 | . . . . . . . 1 . . 1 . . . . 1 . 1 . . . . . . 1 2 1 . . 1 . . . . . 1 . . Compactor 9 | . . . . . . . . . . . . 4 . . . . . . 5 . . . . . . . . . . . . . . . . . . Cetus Guard 4 | . . . . . . . . . . . . . . . . . . . . . . 4 . . . . . . . . . . . . . . . Quarantine Guard 2 | . . . . . . . . . . . . . . . . . . . . . . . . . . . . . . . 2 . . . . . . Enhanced Grunt 1 | . . . . . . . . . . . 1 . . . . . . . . . . . . . . . . . . . . . . . . . . Lightning 2 | . . . . . . . . . . . . . . . . . . . . . . . . 2 . . . . . . . . . . . . . Investigator 2 | . . . . . . . . . . . . . . . . . . . . . . . . . . . . . . . . . . . . 2 . Striker 21 | . . . . . . . . . . . . . . . . . . . . . . . . . . . . 10 . . . . 2 . . 7 2 Executioner 15 | . . . . . . . . . . . . . . . . . . . . . . . . . . . . 6 . . . . . . . 6 3 Alpha 7 1 | . . . . . . . . . . . . . . . . . . . . . . . . . . . . . . . . . 1 . . . . Z-Light 3 | . . . . . . . . . . . . . . . . . . . . . . . . 3 . . . . . . . . . . . . . Thief 1 | . . . . . . . 1 . . . . . . . . . . . . . . . . . . . . . . . . . . . . . . Assembled 1 | . . . . 1 . . . . . . . . . . . . . . . . . . . . . . . . . . . . . . . . . Wasp 1 | . . . . . . . . . . . . . 1 . . . . . . . . . . . . . . . . . . . . . . . . Thug 11 | . . . . . . . . 2 . . . . . 1 . . . . . . 3 . . . . . . 5 . . . . . . . . . Savage 3 | . . . . . . . . . . . . . . 2 . . . . . . 1 . . . . . . . . . . . . . . . . Butcher 6 | . . . . . . . . 4 . . . . . . . . . . . . 2 . . . . . . . . . . . . . . . . Wizard 1 | . . . . . . . . . . . . . . . . . . . . . 1 . . . . . . . . . . . . . . . . Mutant 3 | . . . . . . . . 2 . . . . . . . . . . 1 . . . . . . . . . . . . . . . . . . Best Kill Streak 42 | . 4 6 . 3 12 16 2 4 . 4 10 1 2 3 2 . 7 1 3 4 18 6 1 2 17 7 2 23 5 14 6 14 3 5 7 42 9 Combat Bots Only 31 | . 2 6 . 3 9 8 2 4 . 4 4 1 1 3 2 . 7 . 3 4 17 5 1 2 10 7 2 23 5 8 2 11 3 3 7 31 9 Max Kills in Single Turn 12 | . 1 2 . 2 2 7 1 1 . 1 5 1 1 2 1 . 2 1 2 3 12 6 1 1 5 3 1 10 3 2 2 3 1 1 2 6 2 Gunslinging 1 | . . 1 . 1 . 1 . . . . . . . . . . 1 . . . 1 . . . . . . . . . . . . . . . . Exploded 10 | . . . . . . 2 . . . . 1 . 1 . . . 1 . . 3 7 5 . . 2 3 . 10 3 1 . 2 . . . 5 . Melee . | . . . . . . . . . . . . . . . . . . . . . . . . . . . . . . . . . . . . . . Uniques/NPCs Destroyed 1 | . . 1 . . . . . . . . . . . . . . . . . . . . . . . . . . . . . . . . . . . YI-UF0 (-10/Mines) Combat | -11 -10 -10 -10 -9 -8 -7 -7 -7 -7 -6 -6 -6 -6 -6 -6 -6 -5 -5 -5 -5 -5 -5 -5 -5 -4 -4 -4 -4 -3 -3 -3 -2 -2 -2 -2 -1 -1 -------- Run | Scr Mat Min Exi Min Mat Fac Low Low Dat Pro Fac Was Fac Low Low Zio Pro Fac Was Fac Ext Cet Arc Hub Fac Upp Upp War Pro Res Qua Res Tes Sec Gar Acc Com Damage Taken 22156 | . 70 111 . 107 1618 2012 355 740 . 383 682 . 217 141 378 . 1100 . . 174 1965 942 58 674 1231 464 115 2217 240 285 464 443 331 146 341 3140 1012 Core 14893 | . 59 95 . 81 1164 1219 224 441 . 249 379 . 125 106 211 . 605 . . 96 1216 551 38 391 859 354 83 1645 181 196 302 341 222 116 251 2349 744 Absorbed by Shields 1325 | . . . . . . . . . . . . . . . . . . . . . . . . 11 . . . 717 115 . . . . . . 423 59 Redirected to Core 13332 | . 37 53 . 71 971 1040 181 406 . 211 352 . 125 94 211 . 579 . . 96 1156 504 38 311 798 322 83 1426 173 160 296 315 222 83 245 2138 635 Core Remaining (%) 95 | 100 . . . 99 80 . . . . 100 . . . . . . 98 . . . . . . 100 . . . . 94 . 88 . . . 100 . 100 Volleys Fired 1749 | . 22 19 . 12 109 125 14 39 . 20 66 9 17 10 16 3 30 2 15 11 37 28 7 41 104 43 7 143 28 88 55 90 70 38 74 306 51 Largest 4 | . 2 2 . 2 3 3 3 3 . 3 3 4 4 4 4 1 3 3 3 3 3 3 3 3 1 1 1 1 1 1 1 2 1 1 1 1 1 Hottest 338 | . 100 100 . 100 240 240 195 195 . 220 235 315 338 338 338 150 262 262 262 262 262 255 268 268 110 110 70 110 110 110 110 169 120 70 70 70 70 Shots Fired 2763 | . 44 38 . 24 226 364 42 115 . 58 158 36 52 40 64 2 85 6 45 25 80 57 15 94 104 43 7 143 28 88 55 90 70 38 71 305 51 Gun 830 | . 44 38 . 24 37 125 . . . . 48 18 39 30 48 1 76 6 45 23 68 56 15 89 . . . . . . . . . . . . . Cannon 1862 | . . . . . 189 239 42 115 . 58 109 18 13 10 16 1 8 . . . . . . 5 102 40 7 127 25 88 55 89 70 38 71 276 51 Launcher 70 | . . . . . . . . . . . . . . . . . 1 . . 2 12 1 . . 2 3 . 16 3 . . 1 . . . 29 . Special 1 | . . . . . . . . . . . 1 . . . . . . . . . . . . . . . . . . . . . . . . . . Kinetic . | . . . . . . . . . . . . . . . . . . . . . . . . . . . . . . . . . . . . . . Thermal 1996 | . 44 38 . 24 226 364 42 115 . 58 157 36 52 40 64 2 84 6 45 23 68 56 15 94 19 9 . 8 3 58 37 22 61 25 24 55 22 Explosive 70 | . . . . . . . . . . . . . . . . . 1 . . 2 12 1 . . 2 3 . 16 3 . . 1 . . . 29 . Electromagnetic 696 | . . . . . . . . . . . . . . . . . . . . . . . . . 83 31 7 119 22 30 18 67 9 13 47 221 29 Robot Hit Streak 65 | . 8 8 . 10 19 65 17 21 . 31 57 30 31 22 12 . 28 18 25 14 47 52 9 16 19 17 9 21 14 17 31 37 16 36 43 29 16 Robot Miss Streak 4 | . 3 2 . 2 3 3 2 1 . 2 3 1 1 2 2 . 2 . 1 2 3 1 1 4 4 3 2 2 2 1 . 2 1 . 1 1 2 Penetration Max 1 | . . . . . . . . . . . . . . . . . . . . . . . . . 1 1 1 1 1 1 1 1 . . 1 1 1 Secondary Targets 24 | . . 1 . 1 . 6 . . . . . . . . . . 2 . 1 2 5 3 . 3 . . . . . . . . . . . . . Max Gunslinging Chain 2 | . . 1 . 1 . 2 . . . . . . . . . . 1 . 1 1 1 1 . 1 . . . . . . . . . . . . . Capacitor 541 | . . . . . . . . . . . . . . . . . . . . . . . . . . . . . . . . 35 70 38 71 276 51 Shots Hit Robots 1938 | . 29 26 . 16 151 281 30 82 . 46 112 27 27 25 37 . 56 5 37 19 63 38 8 64 69 31 5 120 19 52 20 65 42 20 50 224 42 Core Hits 1523 | . 11 12 . 7 58 128 10 31 . 23 57 11 15 10 16 . 40 4 20 31 276 28 2 29 50 15 2 238 17 30 12 48 7 6 19 247 13 Critical Hits 153 | . . . . . 4 2 . 2 . . 1 . . . 1 . 3 . 3 1 3 1 . 3 15 1 4 32 2 6 2 9 1 1 8 39 9 Critical Kills 49 | . . . . . 2 . . . . . . . . . 1 . 1 . . . 1 . . . 7 . 1 10 . 1 1 3 . 1 4 13 3 Critical Parts Destroyed 72 | . . . . . 2 2 . 2 . . 1 . . . . . 2 . . 1 2 1 . 3 4 1 3 14 1 3 . 4 1 . 3 18 4 Melee Attacks . | . . . . . . . . . . . . . . . . . . . . . . . . . . . . . . . . . . . . . . Impact . | . . . . . . . . . . . . . . . . . . . . . . . . . . . . . . . . . . . . . . Slashing . | . . . . . . . . . . . . . . . . . . . . . . . . . . . . . . . . . . . . . . Piercing . | . . . . . . . . . . . . . . . . . . . . . . . . . . . . . . . . . . . . . . Sneak Attacks . | . . . . . . . . . . . . . . . . . . . . . . . . . . . . . . . . . . . . . . Combat Hostiles . | . . . . . . . . . . . . . . . . . . . . . . . . . . . . . . . . . . . . . . Follow-up Attacks . | . . . . . . . . . . . . . . . . . . . . . . . . . . . . . . . . . . . . . . Damage Inflicted 143826 | . 418 304 . 189 3851 9004 928 2267 . 1422 4459 1018 1252 502 1150 . 2590 181 1498 1228 9506 1566 273 2807 5692 3077 462 28508 2608 4205 1478 5924 2136 1284 3351 35966 2722 Guns 16446 | . 418 304 . 189 297 1864 . . . . 810 438 706 378 881 . 2036 181 1498 655 1964 1309 273 2245 . . . . . . . . . . . . . Cannons 68978 | . . . . . 3554 5063 928 2267 . 1422 2802 580 212 124 269 . 160 . . . . . . 271 4177 1910 462 7793 1087 3936 1478 5017 2136 1284 3351 15973 2722 Explosions 58393 | . . . . . . 2077 . . . . 838 . 334 . . . 394 . . 573 7542 257 . 291 1515 1167 . 20715 1521 269 . 907 . . . 19993 . Melee . | . . . . . . . . . . . . . . . . . . . . . . . . . . . . . . . . . . . . . . Ramming 9 | . . . . . . . . . . . 9 . . . . . . . . . . . . . . . . . . . . . . . . . . Kinetic . | . . . . . . . . . . . . . . . . . . . . . . . . . . . . . . . . . . . . . . Thermal 47811 | . 418 304 . 189 3851 8227 928 2267 . 1422 3612 1018 1076 502 1150 . 2196 181 1498 655 1964 1309 273 2516 269 112 . 1065 270 2161 539 928 1687 472 1481 2322 949 Explosive 53851 | . . . . . . 713 . . . . 838 . 176 . . . 394 . . 555 7542 257 . . 1416 1167 . 19926 1306 . . 462 . . . 19099 . Electromagnetic 42155 | . . . . . . 64 . . . . . . . . . . . . . 18 . . . 291 4007 1798 462 7517 1032 2044 939 4534 449 812 1870 14545 1773 Impact . | . . . . . . . . . . . . . . . . . . . . . . . . . . . . . . . . . . . . . . Slashing . | . . . . . . . . . . . . . . . . . . . . . . . . . . . . . . . . . . . . . . Piercing . | . . . . . . . . . . . . . . . . . . . . . . . . . . . . . . . . . . . . . . Highest Corruption 6 | . . . . . 5 1 1 1 1 1 . . . . . 4 3 . . . . . . 2 2 2 2 2 . . 1 3 3 3 6 2 2 Average Corruption 2 | . . . . . 5 1 1 1 1 1 . . . . . 3 3 . . . . . . 1 1 2 2 2 . . 1 2 3 3 5 1 2 Corruption Purged 1 | . . . . . . . . . . . . . . . . 1 . . . . . . . . . . . . . . . . . . . . . Effects 167 | . . . . . 33 2 1 6 . 2 . . . . . 12 21 . . . . . . . 6 5 4 . . . 4 13 17 11 17 10 3 Message Errors 41 | . . . . . 3 . 1 3 . 1 . . . . . 2 4 . . . . . . . 2 1 2 . . . 2 5 6 5 1 3 . Matter Fused 28 | . . . . . 9 . . . . . . . . . . 3 6 . . . . . . . . . . . . . . 1 4 2 3 . . Heat Flow Errors 17 | . . . . . 3 . . . . . . . . . . 2 2 . . . . . . . . 2 . . . . . 2 2 . 2 1 1 Energy Discharges 20 | . . . . . 2 . . 1 . . . . . . . 3 1 . . . . . . . 2 1 2 . . . 1 2 1 . 1 1 2 Data Loss (minor) 14 | . . . . . 2 . . 1 . . . . . . . 2 1 . . . . . . . 1 1 . . . . 1 . . 1 3 1 . Misfires 1 | . . . . . 1 . . . . . . . . . . . . . . . . . . . . . . . . . . . . . . . . Targeting Errors 34 | . . . . . 11 1 . 1 . . . . . . . . 4 . . . . . . . 1 . . . . . . 2 4 3 4 3 . Weapon Failures 12 | . . . . . 2 1 . . . 1 . . . . . . 3 . . . . . . . . . . . . . . 1 . . 3 1 . Overload Shots 2 | . . . . . . . . . . . . . . . . 2 . . . . . . . . . . . . . . . . . . . . . Effects 2 | . . . . . . . . . . . . . . . . 2 . . . . . . . . . . . . . . . . . . . . . Heat Surge 1 | . . . . . . . . . . . . . . . . 1 . . . . . . . . . . . . . . . . . . . . . Meltdown 1 | . . . . . . . . . . . . . . . . 1 . . . . . . . . . . . . . . . . . . . . . Overflow Damage 7605 | . . . . . 72 614 39 81 . 36 139 . 14 . 6 . 10 . . 15 31 . . 21 274 522 . 1472 224 509 134 309 106 160 356 2385 76 Projectiles 4531 | . . . . . 72 155 39 81 . 36 90 . 14 . 6 . . . . . . . . 21 187 246 . 506 195 509 134 289 106 160 356 1253 76 Explosions 3074 | . . . . . . 459 . . . . 49 . . . . . 10 . . 15 31 . . . 87 276 . 966 29 . . 20 . . . 1132 . Melee . | . . . . . . . . . . . . . . . . . . . . . . . . . . . . . . . . . . . . . . Knockbacks . | . . . . . . . . . . . . . . . . . . . . . . . . . . . . . . . . . . . . . . Impact . | . . . . . . . . . . . . . . . . . . . . . . . . . . . . . . . . . . . . . . Kinetic . | . . . . . . . . . . . . . . . . . . . . . . . . . . . . . . . . . . . . . . Secondary . | . . . . . . . . . . . . . . . . . . . . . . . . . . . . . . . . . . . . . . Self-Inflicted Damage 436 | . . . . . . . . . . . 4 . . . . . . . . 30 293 . . 9 . . . 61 . . . 24 . . . 15 . Shots 15 | . . . . . . . . . . . . . . . . . . . . 1 10 . . 1 . . . 1 . . . 1 . . . 1 . Rammed 1 | . . . . . . . . . . . 1 . . . . . . . . . . . . . . . . . . . . . . . . . . Targets Rammed 1 | . . . . . . . . . . . 1 . . . . . . . . . . . . . . . . . . . . . . . . . . Kicked . | . . . . . . . . . . . . . . . . . . . . . . . . . . . . . . . . . . . . . . Crushed . | . . . . . . . . . . . . . . . . . . . . . . . . . . . . . . . . . . . . . . Highest Temperature 269 | . 84 . . . 248 87 163 199 . 192 199 194 188 220 269 181 239 147 190 66 197 198 180 51 . 182 . . . 149 6 222 143 . 168 206 140 Average Temperature 85 | . 34 . . . 54 16 61 88 . 74 100 119 94 131 137 89 132 69 85 39 84 134 64 17 . 83 . . . 100 3 85 63 . 85 126 96 Received Heat Transfer 3983 | . 39 . . . 324 783 66 236 . 120 297 . 48 21 21 . 350 . . 45 345 189 . 57 135 96 . 140 12 60 33 63 9 18 45 395 36 Siege Activations . | . . . . . . . . . . . . . . . . . . . . . . . . . . . . . . . . . . . . . . Robots Corrupted 169 | . . . . . . . . . . . . . . . . . . . . . . . . 2 11 11 2 31 5 10 3 13 3 4 6 61 7 Combat Hostiles 149 | . . . . . . . . . . . . . . . . . . . . . . . . . 10 11 2 31 5 8 2 12 2 3 6 50 7 Parts Fried 359 | . . . . . . . . . . . . . . . . . . . . . . . . 2 27 11 7 58 6 21 11 32 8 5 15 133 23 Impact Corruptions . | . . . . . . . . . . . . . . . . . . . . . . . . . . . . . . . . . . . . . . Robots Melted 11 | . 2 . . . 1 2 . 1 . . 1 . . . . . . . . . . 1 . . . . . . . . 1 . . . . 2 . Combat Hostiles 8 | . 1 . . . 1 2 . 1 . . 1 . . . . . . . . . . 1 . . . . . . . . 1 . . . . . . Parts Melted 120 | . 1 2 . . 13 38 2 2 . 4 8 1 6 3 1 . 3 . . 1 7 3 5 5 1 . . . . 2 . 1 . 3 7 1 . Heat Transferred 53211 | . 1258 888 . 555 7185 11948 1184 2886 . 1776 4181 1189 1203 582 1313 . 2220 185 1554 666 2053 1406 296 2073 100 50 . 500 175 975 200 559 1295 222 703 1315 516 Parts Sabotaged . | . . . . . . . . . . . . . . . . . . . . . . . . . . . . . . . . . . . . . . Parts Stolen . | . . . . . . . . . . . . . . . . . . . . . . . . . . . . . . . . . . . . . . Parts Stripped . | . . . . . . . . . . . . . . . . . . . . . . . . . . . . . . . . . . . . . . Power Chain Reactions 12 | . . . . . . . . . . . . . . . . . . . . . . . . . . . . 4 1 1 . 2 . . . 4 . Missiles Intercepted . | . . . . . . . . . . . . . . . . . . . . . . . . . . . . . . . . . . . . . . Alert | -11 -10 -10 -10 -9 -8 -7 -7 -7 -7 -6 -6 -6 -6 -6 -6 -6 -5 -5 -5 -5 -5 -5 -5 -5 -4 -4 -4 -4 -3 -3 -3 -2 -2 -2 -2 -1 -1 ------- Run | Scr Mat Min Exi Min Mat Fac Low Low Dat Pro Fac Was Fac Low Low Zio Pro Fac Was Fac Ext Cet Arc Hub Fac Upp Upp War Pro Res Qua Res Tes Sec Gar Acc Com Peak Influence 7291 | . 204 224 . 185 819 2042 . . . . 1158 443 1980 . . . . 331 119 1238 3134 2030 851 1361 3093 . . . . 823 639 1701 1402 1140 1610 7291 6197 Initial 4665 | . . 79 . . 48 284 . . . . 181 405 310 . . . . 291 115 . 600 1754 812 284 666 . . . . 180 389 335 872 788 873 965 4665 Average 1238 | . 69 85 . 129 429 1154 . . . . 547 432 1344 . . . . 298 110 508 1551 1906 812 774 1207 . . . . 518 491 1079 1091 940 1251 4208 5461 Maximum Alert Level 5 | . 1 1 . . 3 5 . . . . 4 2 5 . . . . 1 . 4 5 5 3 4 5 . . . . 3 2 5 4 4 5 5 5 Low Security (%) 11 | 100 93 85 . 100 9 . . . . . 4 . . . . . . . 100 36 . . . . . . . . . 9 . . . . . . . Level 1 11 | . 6 14 . . 44 8 . . . . 28 . 2 . . . . 100 . 21 . . . 23 . . . . . 16 2 13 . . . . . Level 2 20 | . . . . . 35 26 . . . . 41 100 17 . . . . . . 11 18 . . 4 6 . . . . 52 97 13 . . . . . Level 3 21 | . . . . . 11 4 . . . . 23 . 12 . . . . . . 18 32 . 100 55 55 . . . . 21 . 18 54 88 39 5 . Level 4 14 | . . . . . . 31 . . . . 2 . 20 . . . . . . 12 10 . . 16 23 . . . . . . 39 45 11 50 10 . Level 5 8 | . . . . . . 27 . . . . . . 9 . . . . . . . . 100 . . 3 . . . . . . 16 . . 10 4 100 High Security 11 | . . . . . . 2 . . . . . . 36 . . . . . . . 39 . . . 11 . . . . . . . . . . 79 . Max Security . | . . . . . . . . . . . . . . . . . . . . . . . . . . . . . . . . . . . . . . Sterilizations 1 | . . . . . . . . . . . . . . . . . . . . . . . . . . . . . . . . . . . . 1 . Squads Dispatched 141 | . 2 . . . 8 14 . . . . 9 . 10 . 1 . 1 . . 2 11 . . 4 17 . . . . 8 3 13 5 2 . 28 3 Investigation 32 | . 1 . . . 4 9 . . . . 5 . 3 . 1 . . . . 1 . . . . 2 . . . . 3 . . . 1 . 2 . Extermination 10 | . . . . . . 1 . . . . 1 . . . . . . . . . . . . 1 2 . . . . 1 1 2 1 . . . . Reinforcement 26 | . 1 . . . 1 2 . . . . 1 . 3 . . . . . . 1 1 . . 1 3 . . . . 3 2 2 3 . . 2 . Assault 65 | . . . . . . 2 . . . . 2 . 4 . . . 1 . . . 10 . . 1 10 . . . . . . 6 1 1 . 24 3 Garrison 8 | . . . . . 3 . . . . . . . . . . . . . . . . . . 1 . . . . . 1 . 3 . . . . . Intercept . | . . . . . . . . . . . . . . . . . . . . . . . . . . . . . . . . . . . . . . Construction Impeded 8 | . . . . . . 1 . . . . . . 2 . . . . . . . . . . . 1 . . . . 1 . 1 1 . . 1 . Haulers Reinforced 8 | . . . . . . . . . . . . . 1 . . . . . . 1 . . . . 1 . . . . 2 1 1 . . . 1 . Stealth | -11 -10 -10 -10 -9 -8 -7 -7 -7 -7 -6 -6 -6 -6 -6 -6 -6 -5 -5 -5 -5 -5 -5 -5 -5 -4 -4 -4 -4 -3 -3 -3 -2 -2 -2 -2 -1 -1 --------- Run | Scr Mat Min Exi Min Mat Fac Low Low Dat Pro Fac Was Fac Low Low Zio Pro Fac Was Fac Ext Cet Arc Hub Fac Upp Upp War Pro Res Qua Res Tes Sec Gar Acc Com Distress Signals 25 | . 1 . . . 2 4 . . . . 1 . 3 . . . . . . . 1 1 . . 1 . . . . 3 . 1 . 1 . 6 . Communications Jammed . | . . . . . . . . . . . . . . . . . . . . . . . . . . . . . . . . . . . . . . Distress Signals . | . . . . . . . . . . . . . . . . . . . . . . . . . . . . . . . . . . . . . . Times Spotted 1111 | . 10 6 . 13 47 69 7 15 . 17 38 5 14 13 12 . 25 1 5 24 98 12 4 38 62 29 4 165 13 27 23 49 10 19 21 196 20 Peak Tracking Total 20 | . 4 3 . 4 7 7 4 6 . 8 6 3 9 4 4 . 9 1 2 10 17 6 2 6 8 7 2 20 4 5 7 7 3 8 4 18 5 Tactical Retreats 56 | . 1 . . 2 1 6 1 . . . 3 . . . . . 3 . . . . . . . 2 4 . 2 3 3 5 6 1 1 3 9 . Traps | -11 -10 -10 -10 -9 -8 -7 -7 -7 -7 -6 -6 -6 -6 -6 -6 -6 -5 -5 -5 -5 -5 -5 -5 -5 -4 -4 -4 -4 -3 -3 -3 -2 -2 -2 -2 -1 -1 ------- Run | Scr Mat Min Exi Min Mat Fac Low Low Dat Pro Fac Was Fac Low Low Zio Pro Fac Was Fac Ext Cet Arc Hub Fac Upp Upp War Pro Res Qua Res Tes Sec Gar Acc Com Traps Triggered 30 | . . . . . . 5 . . . . 2 . . . . . . 2 . 2 2 . . 1 1 . . . . 1 . 1 . . 5 7 1 Indirectly 1 | . . . . . . . . . . . . . . . . . . . . 1 . . . . . . . . . . . . . . . . . Trap Hack Attempts . | . . . . . . . . . . . . . . . . . . . . . . . . . . . . . . . . . . . . . . Triggered . | . . . . . . . . . . . . . . . . . . . . . . . . . . . . . . . . . . . . . . Disarmed . | . . . . . . . . . . . . . . . . . . . . . . . . . . . . . . . . . . . . . . Reprogrammed . | . . . . . . . . . . . . . . . . . . . . . . . . . . . . . . . . . . . . . . Reused 2 | . . . . 1 1 . . . . . . . . . . . . . . . . . . . . . . . . . . . . . . . . Traps Extracted . | . . . . . . . . . . . . . . . . . . . . . . . . . . . . . . . . . . . . . . Installed 5 | . . . . 3 2 . . . . . . . . . . . . . . . . . . . . . . . . . . . . . . . . Triggered 7 | . . . . . 1 . . . . . . . . . . . . . . . . . . . . 1 . 3 1 . . . . . . . 1 Machines | -11 -10 -10 -10 -9 -8 -7 -7 -7 -7 -6 -6 -6 -6 -6 -6 -6 -5 -5 -5 -5 -5 -5 -5 -5 -4 -4 -4 -4 -3 -3 -3 -2 -2 -2 -2 -1 -1 ---------- Run | Scr Mat Min Exi Min Mat Fac Low Low Dat Pro Fac Was Fac Low Low Zio Pro Fac Was Fac Ext Cet Arc Hub Fac Upp Upp War Pro Res Qua Res Tes Sec Gar Acc Com Machines Disabled 143 | . . . . . 1 26 . 1 . . 20 . 14 . . 1 . . . 8 3 1 . 8 15 . . 1 . 2 7 2 9 2 3 18 1 Max in Single Turn 9 | . . . . . 1 5 . 1 . . 9 . 3 . . 1 . . . 5 2 1 . 5 3 . . 1 . 1 1 1 1 1 1 1 1 Garrison Access 11 | . . . . . . 1 . . . . 1 . 1 . . . . . . . . . . 1 1 . . . . 1 . . . . . 5 . Garrison Relay 2 | . . . . . . . . . . . . . . . . . . . . . . . . . . . . . . . . . . . 2 . . Network Hub 1 | . . . . . . . . . . . . . . . . . . . . . . . . 1 . . . . . . . . . . . . . Energy Cycler 3 | . . . . . . . . . . . . . . . . . . . . . 2 . . . . . . . . . . . . . . 1 . Machines Sabotaged . | . . . . . . . . . . . . . . . . . . . . . . . . . . . . . . . . . . . . . . Garrisons Compromised . | . . . . . . . . . . . . . . . . . . . . . . . . . . . . . . . . . . . . . . Overloaded Fab Kills . | . . . . . . . . . . . . . . . . . . . . . . . . . . . . . . . . . . . . . . Fab Network Shutdowns 1 | . . . . . . . . . . . . . . . . . . . . . . . . . . . . . . . . . 1 . . . . Hacking | -11 -10 -10 -10 -9 -8 -7 -7 -7 -7 -6 -6 -6 -6 -6 -6 -6 -5 -5 -5 -5 -5 -5 -5 -5 -4 -4 -4 -4 -3 -3 -3 -2 -2 -2 -2 -1 -1 --------- Run | Scr Mat Min Exi Min Mat Fac Low Low Dat Pro Fac Was Fac Low Low Zio Pro Fac Was Fac Ext Cet Arc Hub Fac Upp Upp War Pro Res Qua Res Tes Sec Gar Acc Com Machines Accessed 68 | . 5 . 1 . 7 15 . 2 4 . 10 . 5 2 1 . . . . 1 . . . 1 3 1 1 1 . 2 . . 1 2 . 3 . Terminals 33 | . 4 . . . 6 10 . . . . 9 . 3 . 1 . . . . . . . . . . . . . . . . . . . . . . Fabricators 7 | . . . . . . 1 . . . . . . 1 . . . . . . 1 . . . . 1 . . . . 1 . . 1 . . 1 . Repair Stations . | . . . . . . . . . . . . . . . . . . . . . . . . . . . . . . . . . . . . . . Recycling Units 5 | . 1 . . . 1 3 . . . . . . . . . . . . . . . . . . . . . . . . . . . . . . . Scanalyzers 2 | . . . . . . . . . . . . . . . . . . . . . . . . . 1 . . . . . . . . 1 . . . Garrison Access 9 | . . . . . . 1 . . . . 1 . 1 . . . . . . . . . . 1 1 . . . . 1 . . . 1 . 2 . Total Hacks 200 | . 13 . 1 . 19 38 . 8 26 . 28 . 14 2 4 . . . . 3 . . . 1 11 1 1 5 . 9 . . 5 7 . 4 . Successful 117 | . 7 . 1 . 6 17 . 8 26 . 13 . 4 2 2 . . . . 2 . . . 1 5 1 1 5 . 6 . . 5 2 . 3 . Failed 83 | . 6 . . . 13 21 . . . . 15 . 10 . 2 . . . . 1 . . . . 6 . . . . 3 . . . 5 . 1 . Catastrophic 16 | . 1 . . . 3 4 . . . . 1 . 1 . 1 . . . . . . . . . 1 . . . . 1 . . . 2 . 1 . Database Lockouts . | . . . . . . . . . . . . . . . . . . . . . . . . . . . . . . . . . . . . . . Manual 292 | . 6 . . . 9 12 . . . . 9 . 3 . 3 . . . . 12 14 8 . 13 29 . . 1 . 35 43 16 11 40 . 11 17 Terminals 99 | . 12 . . . 18 31 . . . . 27 . 7 . 4 . . . . . . . . . . . . . . . . . . . . . . Fabricators 29 | . . . . . . 3 . . . . . . 5 . . . . . . 3 . . . . 5 . . . . 6 . . 5 . . 2 . Repair Stations . | . . . . . . . . . . . . . . . . . . . . . . . . . . . . . . . . . . . . . . Recycling Units 5 | . 1 . . . 1 3 . . . . . . . . . . . . . . . . . . . . . . . . . . . . . . . Scanalyzers 7 | . . . . . . . . . . . . . . . . . . . . . . . . . 4 . . . . . . . . 3 . . . Garrison Access 16 | . . . . . . 1 . . . . 1 . 2 . . . . . . . . . . 1 2 . . . . 3 . . . 4 . 2 . Terminal Hacks 78 | . 6 . 1 . 5 10 . 8 26 . 9 . 2 2 2 . . . . . . . . . . 1 1 5 . . . . . . . . . Record 21 | . . . 1 . . . . 7 11 . . . . 1 1 . . . . . . . . . . . . . . . . . . . . . . Part Schematic 7 | . . . . . . 1 . . 5 . 1 . . . . . . . . . . . . . . . . . . . . . . . . . . Robot Schematic 7 | . . . . . . . . . 7 . . . . . . . . . . . . . . . . . . . . . . . . . . . . Robot Analysis 1 | . . . . . . . . . . . 1 . . . . . . . . . . . . . . . . . . . . . . . . . . Prototype ID Bank 21 | . 4 . . . 2 4 . . 3 . 3 . . . . . . . . . . . . . . . . 5 . . . . . . . . . Open Door 4 | . . . . . . . . 1 . . . . . 1 . . . . . . . . . . . 1 1 . . . . . . . . . . Branch Access Points 3 | . 1 . . . . 1 . . . . . . 1 . . . . . . . . . . . . . . . . . . . . . . . . Emergency Access Points 1 | . . . . . . 1 . . . . . . . . . . . . . . . . . . . . . . . . . . . . . . . Alert Level 1 | . . . . . . . . . . . . . 1 . . . . . . . . . . . . . . . . . . . . . . . . Unreport Threat 4 | . . . . . 1 1 . . . . 1 . . . 1 . . . . . . . . . . . . . . . . . . . . . . Locate Traps 4 | . 1 . . . 1 1 . . . . 1 . . . . . . . . . . . . . . . . . . . . . . . . . . Recall Assault 1 | . . . . . . . . . . . 1 . . . . . . . . . . . . . . . . . . . . . . . . . . Hauler Manifests 3 | . . . . . 1 1 . . . . 1 . . . . . . . . . . . . . . . . . . . . . . . . . . Fabricator Hacks 10 | . . . . . . . . . . . . . 1 . . . . . . 2 . . . . 2 . . . . 2 . . 2 . . 1 . Load Schematic 5 | . . . . . . . . . . . . . 1 . . . . . . 1 . . . . 1 . . . . 1 . . 1 . . . . Build 5 | . . . . . . . . . . . . . . . . . . . . 1 . . . . 1 . . . . 1 . . 1 . . 1 . Repair Station Hacks . | . . . . . . . . . . . . . . . . . . . . . . . . . . . . . . . . . . . . . . Recycling Unit Hacks . | . . . . . . . . . . . . . . . . . . . . . . . . . . . . . . . . . . . . . . Scanalyzer 1 | . . . . . . . . . . . . . . . . . . . . . . . . . 1 . . . . . . . . . . . . Insert Component 1 | . . . . . . . . . . . . . . . . . . . . . . . . . 1 . . . . . . . . . . . . Garrison Access Hacks 5 | . . . . . . . . . . . 1 . . . . . . . . . . . . 1 1 . . . . . . . . 1 . 1 . Unlock Access 1 | . . . . . . . . . . . . . . . . . . . . . . . . . . . . . . . . . . 1 . . . Seal Access 4 | . . . . . . . . . . . 1 . . . . . . . . . . . . 1 1 . . . . . . . . . . 1 . Unauthorized Hacks 23 | . 1 . . . 1 7 . . . . 3 . 1 . . . . . . . . . . . 1 . . . . 4 . . 3 1 . 1 . Terminals 6 | . . . . . . 3 . . . . 3 . . . . . . . . . . . . . . . . . . . . . . . . . . Track 2 | . . . . . . 1 . . . . 1 . . . . . . . . . . . . . . . . . . . . . . . . . . Botnet 1 | . . . . . . . . . . . 1 . . . . . . . . . . . . . . . . . . . . . . . . . . Detonate 2 | . . . . . . 2 . . . . . . . . . . . . . . . . . . . . . . . . . . . . . . . Operators 1 | . . . . . . . . . . . 1 . . . . . . . . . . . . . . . . . . . . . . . . . . Fabricators 7 | . . . . . . . . . . . . . . . . . . . . . . . . . 1 . . . . 3 . . 3 . . . . Report 2 | . . . . . . . . . . . . . . . . . . . . . . . . . . . . . . 1 . . 1 . . . . Prioritize 3 | . . . . . . . . . . . . . . . . . . . . . . . . . 1 . . . . 1 . . 1 . . . . Haulers 2 | . . . . . . . . . . . . . . . . . . . . . . . . . . . . . . 1 . . 1 . . . . Repair Stations . | . . . . . . . . . . . . . . . . . . . . . . . . . . . . . . . . . . . . . . Recycling Units 5 | . 1 . . . 1 3 . . . . . . . . . . . . . . . . . . . . . . . . . . . . . . . Tunnel 5 | . 1 . . . 1 3 . . . . . . . . . . . . . . . . . . . . . . . . . . . . . . . Scanalyzers 1 | . . . . . . . . . . . . . . . . . . . . . . . . . . . . . . . . . . 1 . . . Researchers 1 | . . . . . . . . . . . . . . . . . . . . . . . . . . . . . . . . . . 1 . . . Garrison Access 4 | . . . . . . 1 . . . . . . 1 . . . . . . . . . . . . . . . . 1 . . . . . 1 . Jam 4 | . . . . . . 1 . . . . . . 1 . . . . . . . . . . . . . . . . 1 . . . . . 1 . Data Cores Recovered 6 | . . . . . . . . . . . . . 1 . . . . . . 1 . . . . 2 . . . . . . . 1 1 . . . Used 1 | . . . . . . . . . . . . . 1 . . . . . . . . . . . . . . . . . . . . . . . . Hacking Detections 43 | . 4 . . . 6 11 . . . . 9 . 5 . 1 . . . . 1 . . . . 3 . . . . 1 . . . 1 . 1 . Full Trace Events 17 | . . . . . 3 5 . . . . 3 . 2 . 1 . . . . 1 . . . . 1 . . . . . . . . 1 . . . Feedback Events 2 | . . . . . . . . . . . . . . . . . . . . . . . . . 1 . . . . . . . . 1 . . . Corruption 2 | . . . . . . . . . . . . . . . . . . . . . . . . . 1 . . . . . . . . 1 . . . Feedback Blocked . | . . . . . . . . . . . . . . . . . . . . . . . . . . . . . . . . . . . . . . Robot Schematics Acquired 32 | . . . . . . . . . 7 . . . . . . . . . . 5 . . . . . . . . . . 15 . . 5 . . . Robots Built . | . . . . . . . . . . . . . . . . . . . . . . . . . . . . . . . . . . . . . . Matter . | . . . . . . . . . . . . . . . . . . . . . . . . . . . . . . . . . . . . . . Time . | . . . . . . . . . . . . . . . . . . . . . . . . . . . . . . . . . . . . . . Total Robot Build Rating . | . . . . . . . . . . . . . . . . . . . . . . . . . . . . . . . . . . . . . . Part Schematics Acquired 102 | . . . . . . 1 . . 5 . 1 . . . . . . . . . . . . . . . . . . 25 46 . . 24 . . . Parts Built 8 | . . . . . . . . . . . . . . . . . . . . 1 . . . . 2 . . . . 1 . . 2 . . 2 . Matter 1349 | . . . . . . . . . . . . . . . . . . . . 285 . . . . 212 . . . . 318 . . 256 . . 278 . Time 548 | . . . . . . . . . . . . . . . . . . . . 152 . . . . 53 . . . . 169 . . 128 . . 46 . Total Part Build Rating 57 | . . . . . . . . . . . . . . . . . . . . 5 . . . . 12 . . . . 6 . . 16 . . 18 . Parts Repaired . | . . . . . . . . . . . . . . . . . . . . . . . . . . . . . . . . . . . . . . Time . | . . . . . . . . . . . . . . . . . . . . . . . . . . . . . . . . . . . . . . Parts Recycled . | . . . . . . . . . . . . . . . . . . . . . . . . . . . . . . . . . . . . . . Recycled Matter . | . . . . . . . . . . . . . . . . . . . . . . . . . . . . . . . . . . . . . . Retrieved Matter . | . . . . . . . . . . . . . . . . . . . . . . . . . . . . . . . . . . . . . . Retrieved Components . | . . . . . . . . . . . . . . . . . . . . . . . . . . . . . . . . . . . . . . Parts Scanalyzed 1 | . . . . . . . . . . . . . . . . . . . . . . . . . 1 . . . . . . . . . . . . Part Schematics Acquired . | . . . . . . . . . . . . . . . . . . . . . . . . . . . . . . . . . . . . . . Parts Damaged . | . . . . . . . . . . . . . . . . . . . . . . . . . . . . . . . . . . . . . . Bothacking | -11 -10 -10 -10 -9 -8 -7 -7 -7 -7 -6 -6 -6 -6 -6 -6 -6 -5 -5 -5 -5 -5 -5 -5 -5 -4 -4 -4 -4 -3 -3 -3 -2 -2 -2 -2 -1 -1 ------------ Run | Scr Mat Min Exi Min Mat Fac Low Low Dat Pro Fac Was Fac Low Low Zio Pro Fac Was Fac Ext Cet Arc Hub Fac Upp Upp War Pro Res Qua Res Tes Sec Gar Acc Com Used RIF Installer . | . . . . . . . . . . . . . . . . . . . . . . . . . . . . . . . . . . . . . . Robots Hacked 1 | . . . . . . . . . . . 1 . . . . . . . . . . . . . . . . . . . . . . . . . . Non-combat 1 | . . . . . . . . . . . 1 . . . . . . . . . . . . . . . . . . . . . . . . . . Combat . | . . . . . . . . . . . . . . . . . . . . . . . . . . . . . . . . . . . . . . Robot Hacks Applied 1 | . . . . . . . . . . . 1 . . . . . . . . . . . . . . . . . . . . . . . . . . find_chute 1 | . . . . . . . . . . . 1 . . . . . . . . . . . . . . . . . . . . . . . . . . Relay Couplers Released 3 | . . . . . . . . . . . . . . . . . . . . . . . . . . . . . . . . . . . 2 1 . Machine Destruction 3 | . . . . . . . . . . . . . . . . . . . . . . . . . . . . . . . . . . . 2 1 . Robots Rewired 20 | . . . . . . . . 5 . 2 4 . . . . . 2 . . . . . . . . 2 . 5 . . . . . . . . . Allies Hacked 4 | . . . . . . . . . . 1 . . . . . . . . . . . . . . 2 . . . . . . 1 . . . . . Hacks Repelled . | . . . . . . . . . . . . . . . . . . . . . . . . . . . . . . . . . . . . . . Allies | -11 -10 -10 -10 -9 -8 -7 -7 -7 -7 -6 -6 -6 -6 -6 -6 -6 -5 -5 -5 -5 -5 -5 -5 -5 -4 -4 -4 -4 -3 -3 -3 -2 -2 -2 -2 -1 -1 -------- Run | Scr Mat Min Exi Min Mat Fac Low Low Dat Pro Fac Was Fac Low Low Zio Pro Fac Was Fac Ext Cet Arc Hub Fac Upp Upp War Pro Res Qua Res Tes Sec Gar Acc Com Total Allies 142 | . . 3 . . . . . 5 . 3 4 18 . . . 4 2 . 18 3 1 6 . 4 14 2 . 5 . . . 5 . . . 5 40 Largest Group 33 | . . 3 3 3 . . . 5 5 6 5 20 20 5 4 5 7 6 20 20 16 6 6 4 11 3 2 5 5 5 . 5 . . . 3 33 Highest-Rated Group 3073 | . . 40 40 40 . . . 110 110 204 195 713 713 198 164 183 281 242 737 737 625 420 420 372 1013 302 78 272 272 272 . 511 . . . 342 3073 Highest-Rated Ally 268 | . . 16 16 16 . . . 25 25 94 94 50 50 46 46 39 49 49 50 50 50 70 70 162 162 103 48 60 60 60 . 122 . . . 122 268 Zionite Dispatches 17 | . . . . . . . . . . . . . . . . . . . . 2 . 2 . 2 6 . . . . . . 3 . . . 2 . Heavy 5 | . . . . . . . . . . . . . . . . . . . . . . . . . 2 . . . . . . 2 . . . 1 . Light 7 | . . . . . . . . . . . . . . . . . . . . . . 2 . 1 3 . . . . . . . . . . 1 . Hacker 1 | . . . . . . . . . . . . . . . . . . . . 1 . . . . . . . . . . . . . . . . . Hero 1 | . . . . . . . . . . . . . . . . . . . . . . . . 1 . . . . . . . . . . . . . Trap Resupply 1 | . . . . . . . . . . . . . . . . . . . . 1 . . . . . . . . . . . . . . . . . Infowar Resupply 1 | . . . . . . . . . . . . . . . . . . . . . . . . . 1 . . . . . . . . . . . . Zionite Resupply 1 | . . . . . . . . . . . . . . . . . . . . . . . . . . . . . . . . 1 . . . . . Total Orders 7 | . . . . . . . . . . . . . . . . . . . . . . . . . 1 . 1 5 . . . . . . . . . STAY 5 | . . . . . . . . . . . . . . . . . . . . . . . . . . . 1 4 . . . . . . . . . FOLLOW 1 | . . . . . . . . . . . . . . . . . . . . . . . . . . . . 1 . . . . . . . . . DROP 1 | . . . . . . . . . . . . . . . . . . . . . . . . . 1 . . . . . . . . . . . . Ally Attacks 975 | . . . . 24 . . . . . 40 47 17 113 29 23 . 33 5 32 102 68 . 40 64 125 14 . . 4 5 . 46 . . . 12 132 Total Damage 41315 | . . . . 205 . . . . . 1030 2111 1007 3137 1073 457 . 1167 83 494 3257 2635 . 942 3496 6540 726 . . 72 247 . 3259 . . . 474 8903 Kills 217 | . . . . 4 . . . . . 9 16 2 27 7 4 . 8 2 1 22 23 . 3 22 31 4 . . 1 . . 8 . . . 3 20 Allies Corrupted 6 | . . . . . . . . . . 2 . . . . . . . . . . . . . 2 . . . . . . . . . . . 2 . Allies Melted . | . . . . . . . . . . . . . . . . . . . . . . . . . . . . . . . . . . . . . . Intel | -11 -10 -10 -10 -9 -8 -7 -7 -7 -7 -6 -6 -6 -6 -6 -6 -6 -5 -5 -5 -5 -5 -5 -5 -5 -4 -4 -4 -4 -3 -3 -3 -2 -2 -2 -2 -1 -1 ------- Run | Scr Mat Min Exi Min Mat Fac Low Low Dat Pro Fac Was Fac Low Low Zio Pro Fac Was Fac Ext Cet Arc Hub Fac Upp Upp War Pro Res Qua Res Tes Sec Gar Acc Com Robot Analysis Total 1 | . . . . . . . . . . . 1 . . . . . . . . . . . . . . . . . . . . . . . . . . Derelict Logs Recovered 12 | . . 1 . . . . 2 2 . 1 . . . 1 1 . 2 . . . . . . . . 1 1 . . . . . . . . . . Drone Launches . | . . . . . . . . . . . . . . . . . . . . . . . . . . . . . . . . . . . . . . Drone Recoveries . | . . . . . . . . . . . . . . . . . . . . . . . . . . . . . . . . . . . . . . Zionite Intel Received 51 | . . . . . . . . . . . . . . . . . . . . 2 3 1 . 1 3 . . . . 7 14 2 2 11 . 1 4 Main Access 3 | . . . . . . . . . . . . . . . . . . . . . . . . . 1 . . . . . 1 . . . . . 1 Emergency Access 2 | . . . . . . . . . . . . . . . . . . . . . . . . . . . . . . . 1 1 . . . . . Guard Positions 4 | . . . . . . . . . . . . . . . . . . . . . . . . . . . . . . 1 1 . . 1 . . 1 Component Stockpiles 3 | . . . . . . . . . . . . . . . . . . . . . . . . . . . . . . 1 1 . . 1 . . . Prototype Stockpiles 5 | . . . . . . . . . . . . . . . . . . . . . . . . . . . . . . 1 1 1 1 1 . . . Component Schematics 3 | . . . . . . . . . . . . . . . . . . . . . . . . . . . . . . 1 2 . . . . . . Prototype Schematics 5 | . . . . . . . . . . . . . . . . . . . . . . . . . . . . . . 1 2 . . 2 . . . Unaware Schematics 6 | . . . . . . . . . . . . . . . . . . . . 1 . . . . . . . . . . 3 . . 2 . . . Unaware Analyses 7 | . . . . . . . . . . . . . . . . . . . . 1 . 1 . . 1 . . . . 1 . . . 2 . . 1 Trap Installations 2 | . . . . . . . . . . . . . . . . . . . . . . . . . . . . . . . 1 . 1 . . . . Active Terminals 2 | . . . . . . . . . . . . . . . . . . . . . 1 . . . . . . . . . . . . . . . 1 Active Garrisons 3 | . . . . . . . . . . . . . . . . . . . . . . . . 1 . . . . . 1 . . . 1 . . . Depthwide Sectors/0 2 | . . . . . . . . . . . . . . . . . . . . . 1 . . . . . . . . . . . . 1 . . . Depthwide Sectors/-1 4 | . . . . . . . . . . . . . . . . . . . . . 1 . . . 1 . . . . . 1 . . . . 1 . Exploration | -11 -10 -10 -10 -9 -8 -7 -7 -7 -7 -6 -6 -6 -6 -6 -6 -6 -5 -5 -5 -5 -5 -5 -5 -5 -4 -4 -4 -4 -3 -3 -3 -2 -2 -2 -2 -1 -1 ------------- Run | Scr Mat Min Exi Min Mat Fac Low Low Dat Pro Fac Was Fac Low Low Zio Pro Fac Was Fac Ext Cet Arc Hub Fac Upp Upp War Pro Res Qua Res Tes Sec Gar Acc Com Turns Passed 26219 | 41 260 595 171 328 985 1908 677 1021 97 838 1131 305 450 887 839 1268 1022 308 409 501 826 313 114 789 1492 545 397 1474 413 905 768 805 563 338 547 1596 293 Spaces Moved 22036 | 44 217 556 173 268 549 1261 606 760 82 668 743 156 341 731 621 1049 753 245 310 354 595 133 64 457 1105 663 535 1021 570 864 924 873 594 436 634 1757 324 Core 1 | 1 . . . . . . . . . . . . . . . . . . . . . . . . . . . . . . . . . . . . . Treads . | . . . . . . . . . . . . . . . . . . . . . . . . . . . . . . . . . . . . . . Legs 1 | . . . . . . . . . . . . . . . . . . . . . . . . . . 1 . . . . . . . . . . . Wheels 12545 | 43 217 556 173 268 549 1261 606 760 82 668 743 156 341 731 621 1049 753 245 310 354 595 133 64 457 810 . . . . . . . . . . . . Hover 9489 | . . . . . . . . . . . . . . . . . . . . . . . . . 295 662 535 1021 570 864 924 873 594 436 634 1757 324 Flight . | . . . . . . . . . . . . . . . . . . . . . . . . . . . . . . . . . . . . . . Fastest Speed 45 | 50 80 90 90 90 90 86 100 100 100 100 100 110 110 110 110 110 110 110 110 110 110 100 110 100 48 48 48 45 48 48 58 58 58 58 58 45 45 Average Speed 82 | 79 81 90 90 90 95 97 100 100 100 100 101 110 110 110 110 110 110 110 110 110 110 109 110 108 101 48 48 47 48 57 58 58 62 58 58 50 45 Slowest Speed 290 | 80 90 90 90 90 100 100 100 100 100 100 110 110 110 110 110 110 110 110 110 110 110 110 130 130 280 290 48 48 48 58 58 58 128 58 58 133 45 Overloaded Moves . | . . . . . . . . . . . . . . . . . . . . . . . . . . . . . . . . . . . . . . Propulsion Burnouts . | . . . . . . . . . . . . . . . . . . . . . . . . . . . . . . . . . . . . . . Robots Hopped . | . . . . . . . . . . . . . . . . . . . . . . . . . . . . . . . . . . . . . . Cave-ins Triggered 1 | . . . . . 1 . . . . . . . . . . . . . . . . . . . . . . . . . . . . . . . . Exploration Rate (%) 61 | 3 56 94 58 41 61 46 78 92 71 89 24 88 19 90 88 86 93 10 96 13 84 58 70 37 34 89 75 80 92 28 94 30 67 28 74 61 24 Regions Visited 37 Branch Regions 23 Pre-discovered Areas 34 | . 1 . 1 . 1 3 2 1 1 1 . . . . . . 1 . . . 14 . . . 4 . . . . . 2 . . 2 . . . Known Exits Taken 20 | . 1 . . . 1 1 . . . 1 . . 1 1 1 . 1 . . 1 . . . . 1 1 1 1 1 1 1 1 1 1 . 1 . Unknown Exits Taken 12 | 1 . 1 1 1 . . 1 1 1 . . . . . . 1 . . . . 1 1 1 1 . . . . . . . . . . . . . Scrap Searched 41 | . . 1 . 3 . . 5 7 . 2 . . . 7 2 3 2 . . . . . . . . 3 3 . 3 . . . . . . . . Spaces Dug 215 | . . . . . 9 1 . . . . 2 . 5 6 . . 3 . . 4 . . . 2 11 62 . 14 . 23 15 9 8 12 3 22 4 Terrain Destroyed 2734 | . . . . . 48 195 7 30 . 10 105 5 54 17 22 . 34 . 3 45 242 18 . 172 233 185 . 345 130 31 22 45 12 18 4 697 5 Melee . | . . . . . . . . . . . . . . . . . . . . . . . . . . . . . . . . . . . . . . Projectile 484 | . . . . . 48 18 7 30 . 10 17 5 12 17 22 . 17 . 3 4 9 3 . 15 30 17 . 47 9 26 22 14 12 18 4 43 5 AOE 2250 | . . . . . . 177 . . . . 88 . 42 . . . 17 . . 41 233 15 . 157 203 168 . 298 121 5 . 31 . . . 654 . Terrain Rammed . | . . . . . . . . . . . . . . . . . . . . . . . . . . . . . . . . . . . . . . Walls Destroyed . | . . . . . . . . . . . . . . . . . . . . . . . . . . . . . . . . . . . . . . Machines Disabled . | . . . . . . . . . . . . . . . . . . . . . . . . . . . . . . . . . . . . . . Actions | -11 -10 -10 -10 -9 -8 -7 -7 -7 -7 -6 -6 -6 -6 -6 -6 -6 -5 -5 -5 -5 -5 -5 -5 -5 -4 -4 -4 -4 -3 -3 -3 -2 -2 -2 -2 -1 -1 --------- Run | Scr Mat Min Exi Min Mat Fac Low Low Dat Pro Fac Was Fac Low Low Zio Pro Fac Was Fac Ext Cet Arc Hub Fac Upp Upp War Pro Res Qua Res Tes Sec Gar Acc Com Total 28233 | 47 255 613 188 330 803 1663 646 936 97 796 1002 269 379 787 733 1158 883 280 347 443 688 256 95 677 1376 844 667 1861 679 1187 1103 1117 784 521 816 2436 471 Wait 2437 | . 8 33 16 36 70 121 6 29 16 67 75 75 6 28 74 86 34 15 18 65 23 5 3 72 63 92 113 478 65 205 73 95 86 31 22 84 49 Move 21997 | 43 216 555 172 267 547 1260 605 759 81 667 743 155 340 730 620 1048 752 245 309 353 594 132 63 456 1104 662 534 1020 569 863 923 872 593 436 630 1756 323 Hop . | . . . . . . . . . . . . . . . . . . . . . . . . . . . . . . . . . . . . . . Pick Up 92 | . 1 1 . 2 5 10 1 4 . 4 5 3 1 1 . . 2 2 2 . . 5 1 5 4 1 . 4 1 . 6 1 1 1 6 10 2 Fast Attach 200 | 4 3 1 . 1 10 16 1 2 . 2 21 2 4 . . 10 2 . . 2 5 4 8 15 13 5 2 14 . 9 10 6 11 2 2 12 1 Attach 6 | . . . . . . 2 . . . 1 . . . . . . . . . . . . . 1 1 . . . 1 . . . . . . . . Detach 3 | . . . . . . . . . . . . . . . . . . . . . . . . . 1 . . 1 . . . 1 . . . . . Swap 35 | . . . . . 1 8 . . . . 2 . . 1 . 2 . 1 . 1 . . . . 3 . 1 4 2 4 . 1 . . . 2 2 Drop 275 | . 2 2 . 1 12 25 3 4 . 3 26 6 4 1 . 9 5 2 2 3 2 11 7 18 16 6 2 19 . 13 16 8 13 2 7 20 5 Fire 1749 | . 22 19 . 12 109 125 14 39 . 20 66 9 17 10 16 3 30 2 15 11 37 28 7 41 104 43 7 143 28 88 55 90 70 38 74 306 51 Melee . | . . . . . . . . . . . . . . . . . . . . . . . . . . . . . . . . . . . . . . Ram 1 | . . . . . . . . . . . 1 . . . . . . . . . . . . . . . . . . . . . . . . . . Kick . | . . . . . . . . . . . . . . . . . . . . . . . . . . . . . . . . . . . . . . Crush . | . . . . . . . . . . . . . . . . . . . . . . . . . . . . . . . . . . . . . . Escape Stasis 167 | . . . . . 1 16 . . . . . . . . . . . 8 . . . . . 7 . . . . . . . . . . 52 82 1 Rewire 146 | . . . . . . . . 43 . 4 22 . . . . . 3 . . . . . . . 1 9 . 64 . . . . . . . . . Trap 5 | . . . . 3 2 . . . . . . . . . . . . . . . . . . . . . . . . . . . . . . . . Miscellaneous 1120 | . 3 2 . 8 46 80 16 56 . 28 41 19 7 16 23 . 55 5 1 8 27 71 6 62 66 26 8 114 13 5 20 43 10 11 23 164 37 Route ------- -11/Scrapyard -10/Materials (discovered 3 exits: [*Mat x2] / *Min) -10/Mines (discovered 3 exits: [*Mat x2] / *Exi) -10/Exiles -9/Mines -8/Materials -7/Factory (discovered 6 exits: *Fac x2 / *Sto x2 / *Low x2) -7/Lower Caves -7/Lower Caves -7/Data Miner -6/Proximity Caves -6/Factory (discovered 3 exits: *Fac x2 / *Low) -6/Waste -6/Factory (discovered 3 exits: Fac / *Low x2) -6/Lower Caves -6/Lower Caves (discovered 2 exits: *Fac / *Zio) -6/Zion (discovered 2 exits: [Dee] / [*Pro]) -5/Proximity Caves -5/Factory (discovered 2 exits: [Upp] / Ext) -5/Waste -5/Factory (discovered 3 exits: Fac / [*Upp] / *Ext) -5/Extension (discovered 3 exits: *Fac x2 / *Cet) -5/Cetus -5/Archives (discovered 3 exits: Fac / *Hub x2) -5/Hub_04(d) (discovered 2 exits: *Fac x2) -4/Factory (discovered 6 exits: *Res x4 / *Upp x2) -4/Upper Caves -4/Upper Caves (discovered 2 exits: *Res / *War) -4/Warlord -3/Proximity Caves -3/Research (discovered 2 exits: Res / *Qua) -3/Quarantine -2/Research (discovered 3 exits: *Acc x2 / *Tes) -2/Testing -2/Section 7 -2/Garrison (discovered 3 exits: *Acc x3) -1/Access (discovered 2 exits: Sur / *Com) -1/Command (discovered 2 exits: *Sur x2) To Epsilon Eridani History --------- Turn | Location | Event 1 | -11/Scrapyard | Upgraded with Propulsion slot (x1) 1 | -11/Scrapyard | Upgraded with Weapon slot (x1) 13 | -11/Scrapyard | Discovered new exit (range 15) 42 | -11/Scrapyard | Entered Materials 84 | -10/Materials | Identified exit to Mines 132 | -10/Materials | Discovered new exit (range 16) 244 | -10/Materials | Discovered new exit (range 13) 302 | -10/Materials | Entered Mines 318 | -10/Mines | Build established: Mutant 374 | -10/Mines | Discovered new exit (range 2) 383 | -10/Mines | Received a Rocket Launcher from a helpful Derelict 510 | -10/Mines | Found a damaged Exp. Sensor Array with a note attached 593 | -10/Mines | Reached level 2 622 | -10/Mines | Learned location of 1 exit from Materials 698 | -10/Mines | Assisted by bots powering up and referring to "LRC-V3" 754 | -10/Mines | YI-UF0 nonchalantly dropped a Grenade Launcher on the ground 774 | -10/Mines | Destroyed YI-UF0 833 | -10/Mines | Discovered new exit (range 8) 872 | -10/Mines | Deemed a non-threat by the Exiles lab entrance 872 | -10/Mines | Discovered new exit (range 5) 897 | -10/Mines | Entered Exiles 897 | -10/Exiles | Accompanied by 3 allies 919 | -10/Exiles | Met 8R-AWN 935 | -10/Exiles | Met EX-HEX 968 | -10/Exiles | Met EX-DEC 984 | -10/Exiles | Learned location of Zion (-6) 1000 | -10/Exiles | Met EX-BIN 1043 | -10/Exiles | Discovered new exit (range 10) 1068 | -10/Exiles | Entered Mines 1068 | -9/Mines | Accompanied by 3 allies 1086 | -9/Mines | Found a hidden stash of uninstalled traps 1144 | -9/Mines | Reached level 3 1175 | -9/Mines | Discovered new exit (range 7) 1304 | -9/Mines | Assembled infested the area 1396 | -9/Mines | Entered Materials 1397 | -8/Materials | Identified exit to Factory 1398 | -8/Materials | Reached level 4 1506 | -8/Materials | Upgraded with Utility slot (x1) 1617 | -8/Materials | Reached level 5 1669 | -8/Materials | Crushed by falling debris 1670 | -8/Materials | Core integrity fell below 50% 1829 | -8/Materials | Upgraded with Utility slot (x1) 1930 | -8/Materials | Upgraded with Weapon slot (x1) 1978 | -8/Materials | Reached level 6 2084 | -8/Materials | Garrison activated, responded to threat 2119 | -8/Materials | Reached level 7 2152 | -8/Materials | Destroyed 9 combat bots 2381 | -8/Materials | Entered Factory 2383 | -7/Factory | Reached level 8 2547 | -7/Factory | Reached level 9 2674 | -7/Factory | Build established: Gunner 2928 | -7/Factory | Reached level 10 2978 | -7/Factory | Upgraded with Utility slot (x1) 3015 | -7/Factory | Upgraded with Propulsion slot (x1) 3064 | -7/Factory | Reached level 11 3127 | -7/Factory | Destroyed 8 combat bots 3136 | -7/Factory | Discovered new exit (range 13) 3181 | -7/Factory | First assault squad dispatched 3239 | -7/Factory | Reached level 12 3277 | -7/Factory | Build established: Tank 3296 | -7/Factory | Upgraded with Utility slot (x1) 3501 | -7/Factory | Discovered new exit (range 18) 3525 | -7/Factory | Reached level 13 3551 | -7/Factory | Identified exit to Factory 3646 | -7/Factory | Discovered new exit (range 10) 3764 | -7/Factory | Reached level 14 3768 | -7/Factory | Upgraded with Power slot (x1) 4096 | -7/Factory | Identified exit to Storage 4096 | -7/Factory | Identified exit to Lower Caves 4125 | -7/Factory | Reached level 15 4245 | -7/Factory | High security lockdown imminent 4289 | -7/Factory | Entered Lower Caves 4655 | -7/Lower Caves | Attracted the attention of an 0b10 checkpoint 4713 | -7/Lower Caves | Spotted B-75 Beast 4732 | -7/Lower Caves | Destroyed B-75 Beast 4799 | -7/Lower Caves | Encountered a Warlord checkpoint 4803 | -7/Lower Caves | Discovered new exit (range 17) 4966 | -7/Lower Caves | Entered another Lower Caves area 5153 | -7/Lower Caves | Learned Armory emergency access door positions 5153 | -7/Lower Caves | Learned Research terminal intel 5153 | -7/Lower Caves | Learned Extension garrison access intel 5252 | -7/Lower Caves | Upgraded with Utility slot (x1) 5462 | -7/Lower Caves | Reached level 16 5557 | -7/Lower Caves | Attacked by a faux Warlord 5820 | -7/Lower Caves | Discovered new exit (range 12) 5836 | -7/Lower Caves | Attacked by a delusional Derelict stockpiling Unaware 5987 | -7/Lower Caves | Entered Data Miner 5987 | -7/Data Miner | Accompanied by 5 allies 5987 | -7/Data Miner | Discovered new exit (range 6) 6004 | -7/Data Miner | Met Data Miner 6026 | -7/Data Miner | Learned location of Section 7 (-2) 6026 | -7/Data Miner | Acquired the access code to Warlord's prototype stash 6043 | -7/Data Miner | Received God Mode back door access code from Data Miner 6084 | -7/Data Miner | Entered Proximity Caves 6084 | -6/Proximity Caves | Accompanied by 5 allies 6168 | -6/Proximity Caves | Escorted by Enhanced Grunt 6182 | -6/Proximity Caves | Reached level 17 6189 | -6/Proximity Caves | Build established: Commander-Tank 6228 | -6/Proximity Caves | Upgraded with Weapon slot (x1) 6424 | -6/Proximity Caves | Attracted the attention of an 0b10 checkpoint 6457 | -6/Proximity Caves | Reached level 18 6517 | -6/Proximity Caves | Spotted B-75 Beast 6522 | -6/Proximity Caves | Destroyed B-75 Beast 6589 | -6/Proximity Caves | Upgraded with Utility slot (x1) 6801 | -6/Proximity Caves | Discovered exit to Factory (range 17) 6922 | -6/Proximity Caves | Entered Factory 6922 | -6/Factory | Accompanied by 5 allies 6968 | -6/Factory | Discovered new exit (range 14) 6999 | -6/Factory | Discovered new exit (range 17) 7078 | -6/Factory | Reached level 19 7100 | -6/Factory | Upgraded with Utility slot (x1) 7289 | -6/Factory | Discovered new exit (range 14) 7588 | -6/Factory | Found Prototype Device 7588 | -6/Factory | Identified Exp. Thermal Shield 7593 | -6/Factory | Upgraded with Utility slot (x1) 7771 | -6/Factory | Reached level 20 7870 | -6/Factory | Incoming investigation squad redirected 7972 | -6/Factory | First assault squad dispatched 8053 | -6/Factory | Sucked down chute 8053 | -6/Factory | Entered Waste 8080 | -6/Waste | 2 allies followed down the chute 8091 | -6/Waste | Spotted C-40 Crusher 8095 | -6/Waste | Destroyed C-40 Crusher 8117 | -6/Waste | Spotted C-40 Crusher 8119 | -6/Waste | Destroyed C-40 Crusher 8125 | -6/Waste | Spotted C-40 Crusher 8125 | -6/Waste | Spotted C-40 Crusher 8133 | -6/Waste | Allies destroyed C-40 Crusher 8140 | -6/Waste | Destroyed C-40 Crusher 8145 | -6/Waste | Spotted C-40 Crusher 8147 | -6/Waste | Allies destroyed C-40 Crusher 8152 | -6/Waste | Found Damper Plating 8168 | -6/Waste | Spotted C-40 Crusher 8173 | -6/Waste | Destroyed C-40 Crusher 8259 | -6/Waste | Warlord forces began an assault 8281 | -6/Waste | Discovered new exit (range 18) 8318 | -6/Waste | Build established: Scavenger-Gunner 8358 | -6/Waste | Entered Factory 8358 | -6/Factory | Accompanied by 20 allies 8505 | -6/Factory | Reached level 21 8608 | -6/Factory | Found Prototype Processor 8608 | -6/Factory | Identified Exp. Signal Interpreter 8611 | -6/Factory | Upgraded with Utility slot (x1) 8638 | -6/Factory | Discovered new exit (range 16) 8638 | -6/Factory | Identified exit to Lower Caves 8643 | -6/Factory | High security lockdown imminent 8723 | -6/Factory | High security lockdown engaged 8808 | -6/Factory | Entered Lower Caves 8808 | -6/Lower Caves | Accompanied by 5 allies 9166 | -6/Lower Caves | Discovered new exit (range 3) 9167 | -6/Lower Caves | Identified exit to Lower Caves 9306 | -6/Lower Caves | Build established: Derelict-Gunner 9531 | -6/Lower Caves | Learned Factory garrison access intel 9695 | -6/Lower Caves | Entered another Lower Caves area 9695 | -6/Lower Caves | Accompanied by 5 allies 9697 | -6/Lower Caves | Discovered new exit (range 18) 9763 | -6/Lower Caves | Identified exit to Factory 10031 | -6/Lower Caves | Spotted B-75 Beast 10040 | -6/Lower Caves | Destroyed B-75 Beast 10228 | -6/Lower Caves | Learned Factory emergency access door positions 10391 | -6/Lower Caves | Reached level 22 10488 | -6/Lower Caves | Discovered new exit (range 18) 10504 | -6/Lower Caves | Encountered a Warlord checkpoint 10530 | -6/Lower Caves | Identified exit to Zion 10534 | -6/Lower Caves | Entered Zion 10534 | -6/Zion | Accompanied by 1 ally 10670 | -6/Zion | Found Prototype Processor 10670 | -6/Zion | Identified Exp. Target Analyzer 10674 | -6/Zion | Found Prototype Processor 10674 | -6/Zion | Identified Exp. Core Analyzer 10679 | -6/Zion | Found Exp. Core Analyzer 10803 | -6/Zion | Discovered new exit (range 13) 11039 | -6/Zion | Discovered new exit (range 7) 11095 | -6/Zion | Learned Factory emergency access door positions 11127 | -6/Zion | Found Prototype Launcher 11127 | -6/Zion | Identified Rocket Array 11328 | -6/Zion | Build established: Derelict-Mutant 11520 | -6/Zion | Imprinted 11522 | -6/Zion | Declared Zion's savior 11802 | -6/Zion | Entered Proximity Caves 11802 | -5/Proximity Caves | Accompanied by 5 allies 11901 | -5/Proximity Caves | Attracted the attention of an 0b10 outpost 11941 | -5/Proximity Caves | Destroyed 7 combat bots 12248 | -5/Proximity Caves | Build established: Scavenger-Gunner 12341 | -5/Proximity Caves | Spotted B-75 Beast 12368 | -5/Proximity Caves | Destroyed B-75 Beast 12620 | -5/Proximity Caves | Reached level 23 12656 | -5/Proximity Caves | Discovered exit to Factory (range 8) 12824 | -5/Proximity Caves | Entered Factory 12824 | -5/Factory | Accompanied by 6 allies 12825 | -5/Factory | Identified exit to Extension 12827 | -5/Factory | Loaded intel: 4 garrison access locations 12867 | -5/Factory | Discovered new exit (range 13) 13132 | -5/Factory | Sucked down chute 13132 | -5/Factory | Entered Waste 13147 | -5/Waste | Spotted C-40 Crusher 13170 | -5/Waste | Spotted C-40 Crusher 13180 | -5/Waste | 3 allies followed down the chute 13184 | -5/Waste | Destroyed C-40 Crusher 13230 | -5/Waste | 3 allies followed down the chute 13235 | -5/Waste | Spotted C-40 Crusher 13241 | -5/Waste | Destroyed C-40 Crusher 13252 | -5/Waste | Spotted C-40 Crusher 13252 | -5/Waste | Spotted C-40 Crusher 13261 | -5/Waste | Destroyed C-40 Crusher 13279 | -5/Waste | Destroyed C-40 Crusher 13313 | -5/Waste | Spotted C-40 Crusher 13314 | -5/Waste | Destroyed C-40 Crusher 13435 | -5/Waste | Discovered new exit (range 13) 13446 | -5/Waste | Warlord forces began an assault 13541 | -5/Waste | Entered Factory 13541 | -5/Factory | Accompanied by 20 allies 13591 | -5/Factory | Incoming investigation squad redirected 13715 | -5/Factory | Fabricated Exp. Terrain Scanner (x1) 13728 | -5/Factory | Discovered new exit (range 30) 13761 | -5/Factory | Retrieved Zion intel report: Unaware Analyses 13820 | -5/Factory | Retrieved Zion intel report: Unaware Schematics 13821 | -5/Factory | Zion Trap Resupply teleported in 13887 | -5/Factory | Reached level 24 13958 | -5/Factory | Discovered exit to Extension (range 17) 13974 | -5/Factory | Zion Hacker squad teleported in 13980 | -5/Factory | Discovered new exit (range 22) 14042 | -5/Factory | Entered Extension 14042 | -5/Extension | Accompanied by 15 allies 14106 | -5/Extension | Energy Cycler disabled 14107 | -5/Extension | Rescued a captive Derelict 14112 | -5/Extension | Rescued a captive Derelict 14113 | -5/Extension | Rescued a captive Derelict 14114 | -5/Extension | Rescued a captive Derelict 14124 | -5/Extension | Rescued a captive Derelict 14185 | -5/Extension | Retrieved Zion intel report: Active Terminals 14247 | -5/Extension | Retrieved Zion intel report: Depthwide Sectors/0 14265 | -5/Extension | Retrieved Zion intel report: Depthwide Sectors/-1 14342 | -5/Extension | First assault squad dispatched 14507 | -5/Extension | Spotted B-75 Beast 14511 | -5/Extension | Discovered new exit (range 22) 14518 | -5/Extension | Allies destroyed B-75 Beast 14544 | -5/Extension | Reached level 25 14544 | -5/Extension | High security lockdown imminent 14567 | -5/Extension | Disrupted transfer network 14624 | -5/Extension | High security lockdown engaged 14728 | -5/Extension | Destroyed 16 combat bots 14804 | -5/Extension | Destroyed 17 combat bots 14806 | -5/Extension | Discovered new exit (range 27) 14808 | -5/Extension | Discovered new exit (range 30) 14844 | -5/Extension | Core integrity fell below 50% 14868 | -5/Extension | Entered Cetus 14919 | -5/Cetus | Spotted Cetus Guard 14919 | -5/Cetus | Spotted Cetus Guard 14922 | -5/Cetus | Spotted Cetus Guard 14922 | -5/Cetus | Spotted Cetus Guard 14938 | -5/Cetus | Destroyed Cetus Guard 14947 | -5/Cetus | Destroyed Cetus Guard 14957 | -5/Cetus | Destroyed Cetus Guard 14964 | -5/Cetus | Destroyed Cetus Guard 15099 | -5/Cetus | Discovered new exit (range 27) 15102 | -5/Cetus | Retrieved Zion intel report: Unaware Analyses 15103 | -5/Cetus | Zion Light squad teleported in 15145 | -5/Cetus | Zion Light squad teleported in 15181 | -5/Cetus | Entered Archives 15181 | -5/Archives | Accompanied by 6 allies 15191 | -5/Archives | Discovered new exit (range 20) 15193 | -5/Archives | Discovered new exit (range 29) 15206 | -5/Archives | Discovered new exit (range 23) 15243 | -5/Archives | Upgraded with Utility slot (x1) 15295 | -5/Archives | Entered Hub_04(d) 15295 | -5/Hub_04(d) | Accompanied by 1 ally 15326 | -5/Hub_04(d) | Retrieved Zion intel report: Active Garrisons 15327 | -5/Hub_04(d) | Zion hero teleported in (P1-3CE) 15429 | -5/Hub_04(d) | Discovered new exit (range 24) 15447 | -5/Hub_04(d) | Zion Light squad teleported in 15514 | -5/Hub_04(d) | Network Hub disabled 15514 | -5/Hub_04(d) | Reached level 26 15556 | -5/Hub_04(d) | Found Prototype Launcher 15556 | -5/Hub_04(d) | Identified Mni. Smartbomb Launcher 15595 | -5/Hub_04(d) | First assault squad dispatched 15729 | -5/Hub_04(d) | Spotted Lightning 15729 | -5/Hub_04(d) | Spotted Lightning 15729 | -5/Hub_04(d) | Spotted Lightning 15752 | -5/Hub_04(d) | Allies destroyed Lightning 15761 | -5/Hub_04(d) | Destroyed Lightning 15767 | -5/Hub_04(d) | Destroyed Lightning 15790 | -5/Hub_04(d) | Found Prototype Processor 15790 | -5/Hub_04(d) | Identified Exp. Targeting Computer 15819 | -5/Hub_04(d) | Found Prototype Device 15819 | -5/Hub_04(d) | Identified EM Dispersion Field 15823 | -5/Hub_04(d) | Found Prototype Protection 15823 | -5/Hub_04(d) | Identified Zio. Weapon Casing 15904 | -5/Hub_04(d) | Spotted Lightning 15907 | -5/Hub_04(d) | Spotted B-75 Beast 15907 | -5/Hub_04(d) | Spotted Lightning 15907 | -5/Hub_04(d) | Spotted Lightning 15925 | -5/Hub_04(d) | Garrison activated, responded to threat 15937 | -5/Hub_04(d) | Discovered new exit (range 14) 15937 | -5/Hub_04(d) | Allies destroyed Lightning 15952 | -5/Hub_04(d) | Destroyed B-75 Beast 15953 | -5/Hub_04(d) | Allies destroyed Lightning 15964 | -5/Hub_04(d) | Allies destroyed Lightning 15966 | -5/Hub_04(d) | Found Prototype Energy Cannon 15966 | -5/Hub_04(d) | Identified EMDS 15993 | -5/Hub_04(d) | Found Imp. Powered Armor 16084 | -5/Hub_04(d) | Entered Factory 16084 | -4/Factory | Accompanied by 1 ally (P1-3CE) 16136 | -4/Factory | Spotted B-86 Titan 16155 | -4/Factory | Destroyed B-86 Titan 16359 | -4/Factory | Discovered new exit (range 15) 16448 | -4/Factory | Discovered new exit (range 18) 16450 | -4/Factory | Build established: Scavenger-Skirmisher 16492 | -4/Factory | Retrieved Zion intel report: Main Access 16492 | -4/Factory | Identified exit to Research 16493 | -4/Factory | Zion Heavy squad teleported in 16518 | -4/Factory | Spotted B-86 Titan 16528 | -4/Factory | Destroyed B-86 Titan 16584 | -4/Factory | First assault squad dispatched 16611 | -4/Factory | Incoming assault squad redirected 16614 | -4/Factory | Incoming assault squad redirected 16664 | -4/Factory | Retrieved Zion intel report: Unaware Analyses 16665 | -4/Factory | Zion Infowar Resupply teleported in 16669 | -4/Factory | Found Exp. Signal Interpreter 16783 | -4/Factory | Zion Light squad teleported in 16856 | -4/Factory | Incoming assault squad redirected 17003 | -4/Factory | Reached level 27 17096 | -4/Factory | Discovered new exit (range 28) 17111 | -4/Factory | Zion Light squad teleported in 17219 | -4/Factory | Fabricated Cmb. Gravmag System? 17281 | -4/Factory | Upgraded with Propulsion slot (x1) 17330 | -4/Factory | Retrieved Zion intel report: Depthwide Sectors/-1 17331 | -4/Factory | Zion Heavy squad teleported in 17364 | -4/Factory | Incoming assault squad redirected 17403 | -4/Factory | High security lockdown imminent 17436 | -4/Factory | Zion Light squad teleported in 17483 | -4/Factory | High security lockdown engaged 17517 | -4/Factory | Destroyed 10 combat bots 17548 | -4/Factory | Reached level 28 17554 | -4/Factory | Identified exit to Upper Caves 17566 | -4/Factory | Build established: Scavenger-Scout 17576 | -4/Factory | Entered Upper Caves 17576 | -4/Upper Caves | Accompanied by 3 allies 17615 | -4/Upper Caves | Attracted the attention of an 0b10 checkpoint 17658 | -4/Upper Caves | Encountered a Warlord checkpoint 17799 | -4/Upper Caves | Learned 8 Research zone layouts 17820 | -4/Upper Caves | Spotted B-86 Titan 17830 | -4/Upper Caves | Destroyed B-86 Titan 17907 | -4/Upper Caves | Attracted the attention of an 0b10 outpost 17960 | -4/Upper Caves | Destroyed 7 combat bots 17996 | -4/Upper Caves | Discovered new exit (range 27) 18054 | -4/Upper Caves | Identified exit to Upper Caves 18121 | -4/Upper Caves | Entered another Upper Caves area 18121 | -4/Upper Caves | Accompanied by 2 allies 18122 | -4/Upper Caves | Identified exit to Warlord 18136 | -4/Upper Caves | Discovered exit to Research (range 28) 18150 | -4/Upper Caves | Encountered a Warlord checkpoint 18518 | -4/Upper Caves | Entered Warlord 18535 | -4/Warlord | System corruption cleaned by Quarantine Array 18763 | -4/Warlord | Rebuked by Warlord 18767 | -4/Warlord | Opened Warlord's prototype stash 18770 | -4/Warlord | Found Prototype Reactor 18770 | -4/Warlord | Identified Vortex Chain Reactor 18778 | -4/Warlord | Found Prototype Device 18778 | -4/Warlord | Identified Thermal Barrier 18788 | -4/Warlord | Warlord's base attacked by MAIN.C 19022 | -4/Warlord | Discovered new exit (range 28) 19045 | -4/Warlord | Destroyed 23 combat bots 19088 | -4/Warlord | Spotted Striker 19088 | -4/Warlord | Spotted Striker 19090 | -4/Warlord | Spotted Striker 19092 | -4/Warlord | Destroyed Striker 19097 | -4/Warlord | Destroyed Striker 19102 | -4/Warlord | Destroyed Striker 19123 | -4/Warlord | Destroyed 13 combat bots 19138 | -4/Warlord | Warlord forces counterattacked 19202 | -4/Warlord | Reached level 29 19235 | -4/Warlord | Destroyed 13 combat bots 19288 | -4/Warlord | Spotted Striker 19295 | -4/Warlord | Destroyed Striker 19316 | -4/Warlord | Destroyed 14 combat bots 19388 | -4/Warlord | Spotted Striker 19388 | -4/Warlord | Spotted B-90 Cyclops 19401 | -4/Warlord | Spotted Striker 19405 | -4/Warlord | Spotted Striker 19407 | -4/Warlord | Spotted Executioner 19418 | -4/Warlord | Destroyed Executioner 19488 | -4/Warlord | Destroyed Striker 19488 | -4/Warlord | Spotted Executioner 19488 | -4/Warlord | Spotted Striker 19503 | -4/Warlord | Destroyed Executioner 19524 | -4/Warlord | Destroyed 11 combat bots 19598 | -4/Warlord | Spotted Executioner 19598 | -4/Warlord | Spotted Executioner 19599 | -4/Warlord | Spotted Striker 19610 | -4/Warlord | Destroyed Executioner 19632 | -4/Warlord | Destroyed Executioner 19658 | -4/Warlord | Destroyed 14 combat bots 19688 | -4/Warlord | Spotted Executioner 19688 | -4/Warlord | Spotted Striker 19697 | -4/Warlord | Destroyed Executioner 19699 | -4/Warlord | Destroyed Striker 19725 | -4/Warlord | Destroyed 16 combat bots 19788 | -4/Warlord | Spotted Striker 19788 | -4/Warlord | Spotted Striker 19788 | -4/Warlord | Spotted Striker 19790 | -4/Warlord | Destroyed Striker 19790 | -4/Warlord | Spotted Striker 19792 | -4/Warlord | Destroyed Striker 19799 | -4/Warlord | Destroyed Striker 19800 | -4/Warlord | Destroyed Striker 19821 | -4/Warlord | Destroyed 18 combat bots 19888 | -4/Warlord | Spotted Executioner 19888 | -4/Warlord | Spotted Executioner 19896 | -4/Warlord | Destroyed Executioner 19925 | -4/Warlord | Destroyed 17 combat bots 19970 | -4/Warlord | Identified exit to Proximity Caves 19992 | -4/Warlord | Entered Proximity Caves 19992 | -3/Proximity Caves | Accompanied by 5 allies 20038 | -3/Proximity Caves | Reached level 30 20057 | -3/Proximity Caves | Upgraded with Utility slot (x1) 20162 | -3/Proximity Caves | Attracted the attention of an 0b10 checkpoint 20193 | -3/Proximity Caves | Discovered exit to Research (range 21) 20202 | -3/Proximity Caves | Spotted B-86 Titan 20211 | -3/Proximity Caves | Destroyed B-86 Titan 20405 | -3/Proximity Caves | Entered Research 20405 | -3/Research | Accompanied by 5 allies 20406 | -3/Research | Identified exit to Quarantine 20408 | -3/Research | Loaded intel: 19 terminal locations 20503 | -3/Research | Retrieved Zion intel report: Unaware Analyses 20510 | -3/Research | Retrieved Zion intel report: Component Stockpiles 20516 | -3/Research | Incoming investigation squad redirected 20550 | -3/Research | Retrieved Zion intel report: Active Garrisons 20568 | -3/Research | Retrieved Zion intel report: Guard Positions 20620 | -3/Research | Retrieved Zion intel report: Prototype Stockpiles 20638 | -3/Research | Retrieved Zion intel report: Prototype Schematics 20682 | -3/Research | Incoming investigation squad redirected 20957 | -3/Research | Discovered new exit (range 27) 20979 | -3/Research | Garrison activated, responded to threat 21049 | -3/Research | Destroyed 8 combat bots 21149 | -3/Research | Fabricated Prc. Matter Filter? 21180 | -3/Research | Retrieved Zion intel report: Component Schematics 21310 | -3/Research | Entered Quarantine 21336 | -3/Quarantine | Found Alien Artifact 21390 | -3/Quarantine | Retrieved Zion intel report: Unaware Schematics 21397 | -3/Quarantine | Retrieved Zion intel report: Trap Installations 21437 | -3/Quarantine | Retrieved Zion intel report: Component Stockpiles 21440 | -3/Quarantine | Retrieved Zion intel report: Unaware Schematics 21451 | -3/Quarantine | Retrieved Zion intel report: Main Access 21451 | -3/Quarantine | Identified exit to Research 21452 | -3/Quarantine | Found Alien Artifact 21553 | -3/Quarantine | Retrieved Zion intel report: Emergency Access 21611 | -3/Quarantine | Retrieved Zion intel report: Depthwide Sectors/-1 21613 | -3/Quarantine | Retrieved Zion intel report: Prototype Schematics 21702 | -3/Quarantine | Found Prototype Device 21702 | -3/Quarantine | Identified Adv. Kinecellerator 21706 | -3/Quarantine | Cryocooling Duct disabled 21715 | -3/Quarantine | Cryocooling Duct disabled 21715 | -3/Quarantine | Reached level 31 21721 | -3/Quarantine | Ambient heat levels rising (+20) 21721 | -3/Quarantine | Non-combat units ordered to evacuate 21730 | -3/Quarantine | Ambient heat levels rising (+20) 21730 | -3/Quarantine | Combat units ordered to evacuate 21794 | -3/Quarantine | Retrieved Zion intel report: Prototype Schematics 21796 | -3/Quarantine | Met incapacitated Sigix Warrior 21796 | -3/Quarantine | Lockdown squad dispatched 21798 | -3/Quarantine | Retrieved Zion intel report: Component Schematics 21799 | -3/Quarantine | Retrieved Zion intel report: Unaware Schematics 21811 | -3/Quarantine | Retrieved Zion intel report: Component Schematics 21830 | -3/Quarantine | Quarantine Guard activated 21909 | -3/Quarantine | Spotted Quarantine Guard 21926 | -3/Quarantine | Cryocooling Duct disabled 21941 | -3/Quarantine | Ambient heat levels rising (+20) 21965 | -3/Quarantine | Destroyed Quarantine Guard 21973 | -3/Quarantine | Spotted Quarantine Guard 21992 | -3/Quarantine | Retrieved Zion intel report: Prototype Stockpiles 22014 | -3/Quarantine | Spotted Quarantine Guard 22022 | -3/Quarantine | Destroyed Quarantine Guard 22071 | -3/Quarantine | Retrieved Zion intel report: Guard Positions 22078 | -3/Quarantine | Entered Research 22098 | -2/Research | Discovered new exit (range 15) 22244 | -2/Research | Retrieved Zion intel report: Prototype Stockpiles 22245 | -2/Research | Zion Heavy squad teleported in 22308 | -2/Research | Reached level 32 22354 | -2/Research | First assault squad dispatched 22376 | -2/Research | Incoming assault squad redirected 22380 | -2/Research | Zion Heavy squad teleported in 22466 | -2/Research | Retrieved Zion intel report: Emergency Access 22467 | -2/Research | Zion Zionite Resupply teleported in 22531 | -2/Research | Discovered new exit (range 18) 22533 | -2/Research | Spotted B-90 Cyclops 22561 | -2/Research | Allies destroyed B-90 Cyclops 22570 | -2/Research | Found Quantum Capacitor 22593 | -2/Research | Garrison activated, responded to threat 22620 | -2/Research | Destroyed 11 combat bots 22704 | -2/Research | Discovered new exit (range 6) 22711 | -2/Research | Identified exit to Access 22818 | -2/Research | Found Prototype Device 22818 | -2/Research | Identified Beam Splitter 22874 | -2/Research | Identified exit to Testing 22883 | -2/Research | Entered Testing 22885 | -2/Testing | Reached level 33 23005 | -2/Testing | Fabricated Cmb. Antigrav System (x2) 23037 | -2/Testing | Found Prototype Energy Cannon 23037 | -2/Testing | Identified Cld. Nova Cannon 23120 | -2/Testing | Spotted Striker 23122 | -2/Testing | Retrieved Zion intel report: Trap Installations 23131 | -2/Testing | Spotted Striker 23142 | -2/Testing | Destroyed Striker 23144 | -2/Testing | Spotted Alpha 7 23145 | -2/Testing | Destroyed Striker 23180 | -2/Testing | Destroyed Alpha 7 23202 | -2/Testing | Found Prototype Device 23202 | -2/Testing | Identified Exp. ECM Suite 23215 | -2/Testing | Stole the SGEMP Prototype 23216 | -2/Testing | Upgraded with Utility slot (x1) 23276 | -2/Testing | Retrieved Zion intel report: Prototype Stockpiles 23292 | -2/Testing | Local fabrication network quarantined 23383 | -2/Testing | First assault squad dispatched 23399 | -2/Testing | Spotted Fortress 23406 | -2/Testing | Incoming assault squad redirected 23443 | -2/Testing | Discovered new exit (range 6) 23446 | -2/Testing | Identified exit to Section 7 23446 | -2/Testing | Entered Section 7 23482 | -2/Section 7 | Retrieved Zion intel report: Unaware Analyses 23500 | -2/Section 7 | Retrieved Zion intel report: Active Garrisons 23556 | -2/Section 7 | Retrieved Zion intel report: Unaware Schematics 23580 | -2/Section 7 | Spotted B-90 Cyclops 23589 | -2/Section 7 | Retrieved Zion intel report: Prototype Schematics 23638 | -2/Section 7 | Retrieved Zion intel report: Prototype Schematics 23647 | -2/Section 7 | Retrieved Zion intel report: Guard Positions 23696 | -2/Section 7 | First assault squad dispatched 23699 | -2/Section 7 | Retrieved Zion intel report: Component Stockpiles 23724 | -2/Section 7 | Retrieved Zion intel report: Depthwide Sectors/0 23736 | -2/Section 7 | Retrieved Zion intel report: Unaware Analyses 23750 | -2/Section 7 | Retrieved Zion intel report: Unaware Schematics 23772 | -2/Section 7 | Retrieved Zion intel report: Prototype Stockpiles 23776 | -2/Section 7 | Spotted Alpha 7 23777 | -2/Section 7 | Spotted Alpha 7 23784 | -2/Section 7 | Identified exit to Garrison 23784 | -2/Section 7 | Entered Garrison 23831 | -2/Garrison | Spotted B-90 Cyclops 23852 | -2/Garrison | Destroyed B-90 Cyclops 23883 | -2/Garrison | Triggered checkpoint 23911 | -2/Garrison | Destroyed 7 combat bots 23930 | -2/Garrison | Discovered exit to Access (range 17) 24004 | -2/Garrison | Attempted to access garrison exit controls, blocked by remote lockdown 24078 | -2/Garrison | Discovered exit to Access (range 18) 24113 | -2/Garrison | Triggered checkpoint 24131 | -2/Garrison | Garrison Relay disabled 24224 | -2/Garrison | Triggered checkpoint 24249 | -2/Garrison | Discovered exit to Access (range 11) 24258 | -2/Garrison | Attempted to install RIF, but system incompatible 24259 | -2/Garrison | Attempted to install RIF, but system incompatible 24262 | -2/Garrison | Attempted to access garrison exit controls, blocked by remote lockdown 24276 | -2/Garrison | Reached level 34 24331 | -2/Garrison | Entered Access 24350 | -1/Access | Incoming investigation squad redirected 24411 | -1/Access | Zion Light squad teleported in 24549 | -1/Access | Spotted B-99 Colossus 24570 | -1/Access | Reached level 35 24597 | -1/Access | Incoming investigation squad redirected 24635 | -1/Access | Retrieved Zion intel report: Depthwide Sectors/-1 24636 | -1/Access | Zion Heavy squad teleported in 24661 | -1/Access | High security lockdown imminent 24689 | -1/Access | Fabricated Cmb. Linear Gravjet? 24691 | -1/Access | Discovered new exit (range 28) 24741 | -1/Access | High security lockdown engaged 24872 | -1/Access | Upgraded with Utility slot (x1) 24913 | -1/Access | Destroyed 8 combat bots 24939 | -1/Access | Reached level 36 24939 | -1/Access | Spotted Striker 24950 | -1/Access | Destroyed Striker 24980 | -1/Access | Destroyed 24 combat bots 25021 | -1/Access | Spotted Investigator 25027 | -1/Access | Destroyed Investigator 25030 | -1/Access | Spotted Striker 25037 | -1/Access | Destroyed Striker 25061 | -1/Access | Destroyed 19 combat bots 25086 | -1/Access | Spotted Executioner 25086 | -1/Access | Spotted Executioner 25088 | -1/Access | Destroyed Executioner 25093 | -1/Access | Destroyed Executioner 25095 | -1/Access | Spotted Striker 25103 | -1/Access | Destroyed Striker 25110 | -1/Access | Destroyed Executioner 25144 | -1/Access | Destroyed 18 combat bots 25279 | -1/Access | Spotted Executioner 25279 | -1/Access | Spotted Executioner 25281 | -1/Access | Spotted Striker 25282 | -1/Access | Destroyed Executioner 25286 | -1/Access | Destroyed Striker 25288 | -1/Access | Reached level 37 25291 | -1/Access | Destroyed Executioner 25291 | -1/Access | Destroyed Executioner 25313 | -1/Access | Spotted Striker 25319 | -1/Access | Destroyed Striker 25319 | -1/Access | Spotted Investigator 25322 | -1/Access | Scanned by Researcher 25323 | -1/Access | Destroyed Investigator 25328 | -1/Access | Spotted Striker 25328 | -1/Access | Spotted Striker 25340 | -1/Access | Destroyed Striker 25343 | -1/Access | Destroyed Striker 25373 | -1/Access | Destroyed 31 combat bots 25421 | -1/Access | Sterilization system engaged 25460 | -1/Access | Found Prototype Device 25460 | -1/Access | Identified EM Disruption Field 25508 | -1/Access | Energy Cycler disabled 25585 | -1/Access | Found Thermal Barrier 25721 | -1/Access | Ambient heat levels rising (+10) 25858 | -1/Access | Spotted B-99 Colossus 25858 | -1/Access | Spotted B-99 Colossus 25871 | -1/Access | Ambient heat levels rising (+10) 25877 | -1/Access | Discovered new exit (range 24) 25926 | -1/Access | Identified exit to Command 25927 | -1/Access | Entered Command 25927 | -1/Command | Spotted B-99 Colossus 25958 | -1/Command | Disengaged cave seal 25958 | -1/Command | Zionites emerged from the dark tunnel 25958 | -1/Command | Retrieved Zion intel report: Unaware Analyses 25979 | -1/Command | Retrieved Zion intel report: Active Terminals 25982 | -1/Command | Disengaged cave seal 25982 | -1/Command | Zionites emerged from the dark tunnel 26003 | -1/Command | Retrieved Zion intel report: Guard Positions 26011 | -1/Command | Reached level 38 26027 | -1/Command | Retrieved Zion intel report: Main Access 26027 | -1/Command | Identified exit to Surface 26093 | -1/Command | Spotted Alpha 7 26103 | -1/Command | Spotted Striker 26104 | -1/Command | Destroyed Striker 26105 | -1/Command | Allies destroyed Alpha 7 26107 | -1/Command | Spotted Executioner 26107 | -1/Command | Spotted Executioner 26108 | -1/Command | Spotted B-99 Colossus 26109 | -1/Command | Spotted Alpha 7 26109 | -1/Command | Destroyed Executioner 26110 | -1/Command | Spotted Striker 26110 | -1/Command | Spotted Executioner 26110 | -1/Command | Spotted Executioner 26113 | -1/Command | Destroyed Striker 26116 | -1/Command | Destroyed Executioner 26116 | -1/Command | Spotted B-99 Colossus 26117 | -1/Command | Destroyed Executioner 26120 | -1/Command | Allies destroyed B-99 Colossus 26122 | -1/Command | Allies destroyed Alpha 7 26134 | -1/Command | Allies destroyed B-99 Colossus 26138 | -1/Command | Destroyed 9 combat bots 26177 | -1/Command | First assault squad dispatched 26196 | -1/Command | Incoming assault squad redirected 26202 | -1/Command | Incoming assault squad redirected 26220 | *** | Escaped! Last Messages --------------- 26196_ Field strength at 46. 26196_ R-10 Processor collects Adv. Kinecellerator. 26196_ Stasis field depleted. 26198_ R-10 Processor collects Prototype Reactor. 26198_ K-01 Serf collects debris. 26201_ R-10 Processor collects Impulse Thruster Array. 26201_ K-01 Serf collects debris. 26201_ R-10 Processor collects Adv. Kinecellerator. 26202_ ALERT: Higher priority target reported, redirecting assault. 26205_ K-01 Serf collects debris. 26206_ The unstable cave ceiling collapses. 26207_ R-10 Processor collects Arm. Heavy Treads. 26208_ K-01 Serf collects debris. 26209_ R-10 Processor collects Helical Railgun. 26212_ K-01 Serf collects debris. 26215_ The unstable cave ceiling collapses. 26216_ R-10 Processor collects Linear Accelerator. 26216_ Stasis field depleted. 26216_ K-01 Serf collects debris. 26219_ R-10 Processor collects Imp. Thermal Converter. Map ----- +----------------------------------------------------+ | ####### "#####################? | | ####### ####" % "##############?####### | | ####+####### ###################### | | ### + = ###################### | | ### ###" #% % ###################### | | ### ? "#### #% %= ###################### | | ### ""###### % ###################### | | ### ""##### # ##################### | | ### ""###### ! ####################### | | ### ""#####;R^*^ ^###################### | | #+###### T"##?##;^^!^^ !##################### | | # ""#####%% ^]^^ ##################### | | + ""######^^^= !###################### | | # ""##### ^^[%k/##################### | | # ? ""#####; ^%*##################### | | # "##### ^^ ! ^ !####?############### | | # ##### #################### | | + ? ##### ##################### | | # ### # ############?###### | | # ###!%R ]!! ##############?#### | | # ## ################## | | #####/##### ################### | | "" ## ###### d^ ################### | | ""?## ###### M Z ################### | | T"## ###### ""ZM z ###########?####?## | | """## ###### ^ M"@ ################### | | ? ? "" ## ###### MMM^ ################### | | ? ##### ###### ^ ^ #############?##### | | #### ###### ^ ^ ^ ^^ ################### | | #### ###### #?###############?# | | ? ## #?#? ####?# #####?############# | | ?## #### #?###########################?##?#### | | ## ##### ###########?#####?#############?##### | | ## ##### ###########################?######### | | ?# #?############################?############ | | ## # ? ##?########################### | | #? # ############################## | | ? # #############?################ | | + ##############?##############? | | ? ?# #############?############?### | | ? #+##?+###############?#?###########???##### | | ? ?# ? ? ? ?##?############?########## | | ??? ? # ? #######?##?###??#####??###? | | ??? ? # ###########?#######?######? | | ??? ?? # ? ? ###############??####?#?#?? | | ???? ?##?#+####?##??#######?###########??? | | ????? ? ? #? ? ###?###########???? | | ??????? ? ? ############?#????? | | ??????? ? ? +? ?? ? ######?#####??????? | | ?????????? ? ? ? # ? ? ??#??######???????? | +----------------------------------------------------+ Best States ------------- Heat Dissipation 141 Coolant Potential 120 Energy Generation 90 Energy Capacity 900 Matter Stores 400 Matter Capacity 400 Sight Range 18 Robot Scan Range 22 Terrain Scan Range 30 Terrain Scan Density 310 Power Amplification 40 Armor Coverage 1200 Resistance: KI 20 Resistance: TH 50 Resistance: EM 90 Weapon Shielding 100 Evasion (%) 70 Core Analysis 15 Matter Filtering 50 Energy Filtering 50 Particle Charging 25 Stasis Canceling 2 Offensive Hacking 5 Defensive Hacking 5 Item Schematics ----------------- Energy Filter | -7/Factory | Hacked Exp. Terrain Scanner | -7/Data Miner | Free Cmb. Gravmag System | -7/Data Miner | Free Exp. Flexi-carbon Leg | -7/Data Miner | Free Lgt. Regenerative Plating | -7/Data Miner | Free Combat Drone Bay | -7/Data Miner | Free Imp. Target Analyzer | -6/Factory | Hacked Prc. Matter Filter | -3/Research | Z-intel Exp. Optical Array | -3/Research | Z-intel Exp. Heat Sink | -3/Research | Z-intel Imp. KE Penetrator | -3/Research | Z-intel Energy Mantle | -3/Research | Z-intel Inertial Stasis Machine | -3/Research | Z-intel Adv. Myomer Leg | -3/Research | Z-intel Proton Burst Cannon | -3/Research | Z-intel Imp. Matter Compressor | -3/Research | Z-intel Exp. Thermal Converter | -3/Research | Z-intel Exp. Targeting Computer | -3/Research | Z-intel Hvy. Wave Gun | -3/Research | Z-intel Imp. Thermal Shield | -3/Research | Z-intel Imp. Antigrav System | -3/Research | Z-intel Hvy. Disruptor Cannon | -3/Research | Z-intel Adv. Coolant Injector | -3/Research | Z-intel Remote Shield | -3/Research | Z-intel Cmb. Antigrav System | -3/Research | Z-intel Adv. Armor Integrity Analyzer | -3/Research | Z-intel Arm. Heavy Treads | -3/Research | Z-intel Fusion Bomb Launcher | -3/Research | Z-intel Remote Datajack | -3/Research | Z-intel Imp. Arc Projector | -3/Research | Z-intel Arm. Medium Treads | -3/Research | Z-intel Stasis Canceller | -3/Research | Z-intel Cld. Antigrav System | -3/Quarantine | Z-intel Exp. Focal Shield | -3/Quarantine | Z-intel Imp. Fusion Compressor | -3/Quarantine | Z-intel Exp. Target Analyzer | -3/Quarantine | Z-intel Adv. Power Amplifier | -3/Quarantine | Z-intel Shock Maul | -3/Quarantine | Z-intel Lrn. Phase Cannon | -3/Quarantine | Z-intel Centrium Heavy Treads | -3/Quarantine | Z-intel Enh. Fission Core | -3/Quarantine | Z-intel Adv. Remote Shield | -3/Quarantine | Z-intel Gravity Neutralizing Apparatus | -3/Quarantine | Z-intel Exp. Myomer Leg | -3/Quarantine | Z-intel Cld. Nuclear Pulse Thruster | -3/Quarantine | Z-intel Cld. Field Propulsion Drive | -3/Quarantine | Z-intel Imp. Energy Mantle | -3/Quarantine | Z-intel Exp. Transmission Jammer | -3/Quarantine | Z-intel Centrium Light Armor Plating | -3/Quarantine | Z-intel Adv. Plasma Rifle | -3/Quarantine | Z-intel Hpw. Tractor Beam | -3/Quarantine | Z-intel Recoil Nullifier | -3/Quarantine | Z-intel Field Propulsion Array | -3/Quarantine | Z-intel Micro-nuke Launcher | -3/Quarantine | Z-intel Nuclear Pulse Array | -3/Quarantine | Z-intel Adv. Launcher Guidance Computer | -3/Quarantine | Z-intel Imp. Transmission Jammer | -3/Quarantine | Z-intel Imp. Focal Shield | -3/Quarantine | Z-intel Hvy. Treads | -3/Quarantine | Z-intel Lance | -3/Quarantine | Z-intel EM Shield | -3/Quarantine | Z-intel Hardlight Generator | -3/Quarantine | Z-intel Shock Absorption System | -3/Quarantine | Z-intel Hvy. Phase Cannon | -3/Quarantine | Z-intel Component Analysis Suite | -3/Quarantine | Z-intel Adv. System Shield | -3/Quarantine | Z-intel Hyp. Mass Driver | -3/Quarantine | Z-intel Antigrav Array | -3/Quarantine | Z-intel Adv. ECM Suite | -3/Quarantine | Z-intel Lrn. Sensor Array | -3/Quarantine | Z-intel Fusion Compressor | -3/Quarantine | Z-intel Adv. Terrain Scan Processor | -3/Quarantine | Z-intel Q-thruster | -3/Quarantine | Z-intel Maneuvering Thrusters | -3/Quarantine | Z-intel Adv. Recalibrator | -3/Quarantine | Z-intel Quantum Capacitor | -3/Quarantine | Z-intel Cloaking Device | -3/Quarantine | Z-intel Adv. Medium Treads | -3/Quarantine | Z-intel Exp. Melee Analysis Suite | -2/Section 7 | Z-intel Exp. Matter Compressor | -2/Section 7 | Z-intel Vibroblade | -2/Section 7 | Z-intel Hdn. Centrium Wheel | -2/Section 7 | Z-intel Hellfire Missile Launcher | -2/Section 7 | Z-intel Kinetic Spear | -2/Section 7 | Z-intel Exp. Power Amplifier | -2/Section 7 | Z-intel Imp. Matter Neutralizer | -2/Section 7 | Z-intel Hvy. Antimatter Reactor | -2/Section 7 | Z-intel Cld. Q-thruster | -2/Section 7 | Z-intel Exp. Force Field | -2/Section 7 | Z-intel Hvy. Dispersion Rifle | -2/Section 7 | Z-intel Exp. Thermal Defense Suite | -2/Section 7 | Z-intel Lgt. Antimatter Cannon | -2/Section 7 | Z-intel Imp. Diametric Drive | -2/Section 7 | Z-intel Exp. Core Analyzer | -2/Section 7 | Z-intel Exp. ECM Suite | -2/Section 7 | Z-intel Plasma Lance | -2/Section 7 | Z-intel Spectral Analyzer | -2/Section 7 | Z-intel Tactical Quantum Warhead | -2/Section 7 | Z-intel Beam Splitter | -2/Section 7 | Z-intel Com. Linear Accelerator | -2/Section 7 | Z-intel Exp. Biometal Leg | -2/Section 7 | Z-intel Mni. Smartbomb Launcher | -2/Section 7 | Z-intel Robot Schematics ------------------ S-27 Virus | -7/Data Miner | Free G-67 Veteran | -7/Data Miner | Free L-41 Fighter | -7/Data Miner | Free X-72 Disruptor | -7/Data Miner | Free H-66 Slayer | -7/Data Miner | Free P-70 Sage | -7/Data Miner | Free I-47 Archangel | -7/Data Miner | Free R-06 Scavenger | -5/Factory | Z-intel Y-64 Sentinel | -5/Factory | Z-intel K-01 Serf | -5/Factory | Z-intel A-02 Transporter | -5/Factory | Z-intel B-60 Warrior | -5/Factory | Z-intel T-07 Excavator | -3/Quarantine | Z-intel R-10 Processor | -3/Quarantine | Z-intel S-43 Plague | -3/Quarantine | Z-intel B-74 Champion | -3/Quarantine | Z-intel H-77 Assassin | -3/Quarantine | Z-intel Y-72 Warden | -3/Quarantine | Z-intel O-32 Director | -3/Quarantine | Z-intel L-61 Swordsman | -3/Quarantine | Z-intel C-55 Analyst | -3/Quarantine | Z-intel W-44 Eye | -3/Quarantine | Z-intel M-36 Artificer | -3/Quarantine | Z-intel A-15 Conveyor | -3/Quarantine | Z-intel X-82 Rainmaker | -3/Quarantine | Z-intel P-80 Master | -3/Quarantine | Z-intel E-15 Imp | -3/Quarantine | Z-intel H-88 Terminator | -2/Section 7 | Z-intel G-73 Enforcer | -2/Section 7 | Z-intel C-65 Expert | -2/Section 7 | Z-intel D-83 Annihilator | -2/Section 7 | Z-intel M-30 Cleanser | -2/Section 7 | Z-intel Fabricated ------------ Exp. Terrain Scanner | x1 | -5/Factory Cmb. Gravmag System | x2 | -4/Factory Prc. Matter Filter | x1 | -3/Research Cmb. Antigrav System | x2 | -2/Testing Cmb. Linear Gravjet | x2 | -1/Access | Preloaded Alien Tech Used ----------------- None Achievements -------------- Heroic Deeds Challenges ------------ None RPGLIKE | -11 -10 -10 -10 -9 -8 -7 -7 -7 -7 -6 -6 -6 -6 -6 -6 -6 -5 -5 -5 -5 -5 -5 -5 -5 -4 -4 -4 -4 -3 -3 -3 -2 -2 -2 -2 -1 -1 --------- Run | Scr Mat Min Exi Min Mat Fac Low Low Dat Pro Fac Was Fac Low Low Zio Pro Fac Was Fac Ext Cet Arc Hub Fac Upp Upp War Pro Res Qua Res Tes Sec Gar Acc Com Levels Raised 37 | . . 1 . 1 4 8 . 1 . 2 2 . 1 . 1 . 1 . . 1 1 . . 1 2 . . 1 1 . 1 1 1 . 1 3 1 XP Earned 58888 | 3000 650 1200 200 1431 6193 11752 516 663 220 3283 2868 50 1749 332 396 89 1635 457 48 1293 1915 203 118 488 2766 424 127 2032 659 881 546 2526 706 530 593 5395 954 XP Spent 58110 | 2360 400 . . 500 6630 7150 . 3470 . 3150 6150 . 2900 . . . 1575 1470 . . . . 3200 . 2335 . . 1100 3500 . . . 3800 . . 7300 1120 Upgrades 105 | 9 4 . . 1 23 10 . 6 . 3 3 . 1 . . . 9 7 . . . . 1 . 6 . . 3 1 . . . 1 . . 13 4 Power Slot 1 | . . . . . . 1 . . . . . . . . . . . . . . . . . . . . . . . . . . . . . . . Propulsion Slot 3 | 1 . . . . . 1 . . . . . . . . . . . . . . . . . . 1 . . . . . . . . . . . . Utility Slot 13 | . . . . . 2 2 . 1 . 1 2 . 1 . . . . . . . . . 1 . . . . . 1 . . . 1 . . 1 . Weapon Slot 3 | 1 . . . . 1 . . . . 1 . . . . . . . . . . . . . . . . . . . . . . . . . . . Core Integrity 28 | 2 . . . . 6 . . . . . . . . . . . . 2 . . . . . . 2 . . 2 . . . . . . . 10 4 Heat Dissipation 13 | 1 4 . . . 3 . . . . . . . . . . . . 5 . . . . . . . . . . . . . . . . . . . Energy Generation 3 | . . . . . 1 . . . . . . . . . . . . . . . . . . . 1 . . 1 . . . . . . . . . Matter Storage 2 | . . . . . . . . . . . . . . . . . . . . . . . . . 2 . . . . . . . . . . . . Mass Support 1 | 1 . . . . . . . . . . . . . . . . . . . . . . . . . . . . . . . . . . . . . Inventory Capacity 5 | 1 . . . 1 . 1 . 1 . . 1 . . . . . . . . . . . . . . . . . . . . . . . . . . Sight Range 2 | . . . . . 2 . . . . . . . . . . . . . . . . . . . . . . . . . . . . . . . . Sensor Range 11 | . . . . . . . . . . 1 . . . . . . 9 . . . . . . . . . . . . . . . . . . 1 . Terrain Scan Density 3 | . . . . . . . . 3 . . . . . . . . . . . . . . . . . . . . . . . . . . . . . Ranged Accuracy 5 | 2 . . . . 1 1 . . . . . . . . . . . . . . . . . . . . . . . . . . . . . 1 . Hack Attack % 1 | . . . . . . 1 . . . . . . . . . . . . . . . . . . . . . . . . . . . . . . . Hack Defense % 1 | . . . . . . 1 . . . . . . . . . . . . . . . . . . . . . . . . . . . . . . . KI Resistance % 4 | . . . . . 3 1 . . . . . . . . . . . . . . . . . . . . . . . . . . . . . . . TH Resistance % 4 | . . . . . 3 1 . . . . . . . . . . . . . . . . . . . . . . . . . . . . . . . TH Damage % 2 | . . . . . 1 . . 1 . . . . . . . . . . . . . . . . . . . . . . . . . . . . . Protomatter Created 11814 | . 31 16 . 23 513 716 21 480 . 312 577 175 37 49 169 . 337 . 173 48 268 305 . 235 481 244 169 1913 148 295 93 669 108 139 461 2422 187 Integrity Restored 22712 | . 55 33 . 150 978 1715 321 1220 . 542 780 381 120 279 416 . 1174 99 2 174 550 1598 122 1306 1296 468 115 2160 233 111 426 791 204 214 402 3483 794 Core 14893 | . 47 33 . 150 978 1400 205 470 . 249 364 15 65 166 211 . 585 20 . 96 428 1339 38 391 859 354 83 1645 110 111 312 487 136 169 284 2349 744 Parts 7819 | . 8 . . . . 315 116 750 . 293 416 366 55 113 205 . 589 79 2 78 122 259 84 915 437 114 32 515 123 . 114 304 68 45 118 1134 50 Protomatter Decayed 7910 | . . . . 79 187 50 . . . 266 353 65 278 48 110 . 160 . 131 108 581 . . 180 412 173 128 1512 21 403 157 451 115 . 168 1400 374 Game ------ Seed DecoyMassSink Manual? 0 Play Time 05:24:26 Cumulative 631.3 hours Start 2021.07.21 @ 01:33:11 End 2021.07.21 @ 08:57:33 Sessions 3 Manual Loads 0 Difficulty Rogue Special Mode Winter2019/RPGLIKE Game No. 220 Rogue 220 Adventurer 0 Explorer 0 Win Type 0 Total 47 Types 27/3/7/4/3/0/2/0/1 Lore% 94 Gallery% 95 Achievement% 86 Wizard Run 0 Options --------- ASCII 0 Keyboard 0 Movement Mouse Keybinds 0 Fullscreen 2 Font 12/Smallcaps Map View 83x54 Tactical HUD 1 Map Filters NONE Filters NONE Steam X RUN: dc1f76d8-e756-4ac9-b0dc-80afa6b4e0cc